{"text_format":"1","workbook":"xlsx","n_sheets":19,"sheets":["Menu","TSS1","1","TSS2","2","TSS3","3","TSS4","4","TSS5","5","PCS","Stopwatch","Yamazumi1","Yamazumi2","Yamazumi3","Yamazumi4","Yamazumi5","Help"],"not_rendered":{"charts":6,"images":4,"macros":1,"external_links":0,"defined_names":16,"comments":10,"pivot_tables":0},"unopened":[],"bounds":{"document_bytes":16777216,"sheet_cells":100000,"rows_first":2000,"rows_last":500,"rows_between":2000,"halvings":0,"cell_chars":16384,"cell_head_chars":4096},"cells_cut":0,"cells_raw":0,"read":"whole","date_system":"1900"}

{"sheet":"Menu","index":0,"n_rows":200,"n_cols":30,"rows_kept":200,"cut":false,"hidden":false,"merged":[[0,0,0,18],[17,0,17,18]]}
["Standardized Work Analyze Tool+Video Capture"]
["Ver 3.3",null,null,null,null,null,null,null,null,null,null,null,"Created by Yaser Ali Husen (yaseralie@gmail.com)",null,null,null,null,null,null,null,"    "]
["First time,Please click Start Button! (This Program is registered only for this Computer, could not be copied or moved to another Computer)"]
["Source:","lean-tool.com",null,null,null,null,null,null,null,null,null,null,null,null,null,null,null,null,null,null,null,null,null,null,null,null,null,{"$f":"SUM(AB6:AB103)","v":0},{"$f":"SUM(AC6:AC103)","v":0},{"$f":"SUM(AD6:AD103)","v":0}]
[]
[]
[]
[null,null,null,null,null,null,null,null,null,null,null," "]
[]
[]
[]
[]
[]
[]
[]
["*Don’t rename each sheet in this program"]
[]
[" Welcome to use \"Standardized Work Analyze Tool v.3.3\"\nPlease run it only for 1 computer, if you use in different computer,the license will not be valid"]
[null,null,null,null,null,null,null,null,null,null,null,null,null,"If you have a newer version on this computer"]
[null,null,null,null,null,null,null,null,null,null,null,null,null,"Please click button below to transfer activation"]
[]
[]
[]
[]
[]
[]
[]
[]
[]
[]
[]
[]
[]
[]
[]
[]
[]
[]
[]
[]
[]
[]
[]
[]
[]
[]
[]
[]
[]
[]
[]
[]
[]
[]
[]
[]
[]
[]
[]
[]
[]
[]
[]
[]
[]
[]
[]
[]
[]
[]
[]
[]
[]
[]
[]
[]
[]
[]
[]
[]
[]
[]
[]
[]
[]
[]
[]
[]
[]
[]
[]
[]
[]
[]
[]
[]
[]
[]
[]
[]
[]
[]
[]
[]
[]
[]
[]
[null,null,null,null,null,null,null,null,null,null,null,null,null,null,null,"2013-09-09T06:58:31"]
[]
[]
[]
[]
[]
[]
[]
[]
[]
[]
[]
[]
[]
[]
[]
[]
[]
[]
[]
[]
[]
[]
[]
[]
[]
[]
[]
[]
[]
[]
[]
[]
[]
[]
[]
[]
[]
[]
[]
[]
[]
[]
[]
[]
[]
[]
[]
[]
[]
[]
[]
[]
[]
[]
[]
[]
[]
[]
[]
[]
[]
[]
[]
[]
[]
[]
[]
[]
[]
[]
[]
[]
[]
[]
[]
[]
[]
[]
[]
[]
[]
[]
[]
[]
[]
[]
[]
[]
[]
[]
[]
[null,null,null,null,null,null,null,null,null,null,null,null,"  "]

{"sheet":"TSS1","index":1,"n_rows":507,"n_cols":66,"rows_kept":507,"cut":false,"hidden":false,"merged":[[3,20,4,20],[3,21,3,25],[3,26,4,26],[21,0,21,1],[1,23,1,25],[2,14,2,16],[2,23,2,25],[3,0,4,0],[3,2,3,16],[3,17,4,17],[3,18,4,18],[3,19,4,19],[1,0,2,1],[1,2,2,5],[1,6,2,13],[1,14,1,16],[25,19,26,19],[25,0,26,0],[25,1,26,1],[25,2,25,16],[25,17,26,17],[25,18,26,18]]}
[null,null,{"$f":"COUNTA(B:B)-1","v":2}]
["PROCESS NAME",null,null,null,null,null,"TIME STUDY SHEET",null,null,null,null,null,null,null,"PART NO",null,null,null,"SECTION LINE",null,null,null,null,"DATE"]
[null,null,null,null,null,null,null,null,null,null,null,null,null,null,"TYPE",null,null,null,"TAKT TIME",null,null,null,null,"MEASURED BY"]
["NO","WORK NAME\nFor walk activity, please write :","Manual",null,null,null,null,null,null,null,null,null,null,null,null,null,null,"OPERATION TIME","ADJUSTMENT\n(Will be used for SWCT Line)","OPERATION","MACHINE NO","MACHINE TIME",null,null,null,null,"AUTO \n(MACHINE TIME)",null,null,null,{"$f":"SUM(AE6:AE105)","v":11.3},{"$f":"SUM(AF6:AF105)","v":8.86},{"$f":"SUM(AG6:AG105)","v":8.35}]
[null,"Walk; walk; walking; return; Return",1,2,3,4,5,6,7,8,9,10,11,12,13,14,15,null,null,null,null,1,2,3,4,5]
[1,null,null,null,null,null,null,null,null,null,null,null,null,null,null,null,null,null,null,null,null,null,null,null,null,null,null,null,null,null,2.9400000000000004,1.6099999999999999,1.6800000000000002,null,null,null,null,null,null,{"$f":"ROUND(C6,0)","v":0},0,0,0,null,null,null,null,null,null,null,null,null,null,null,{"$f":"IF(F6=\"\",\"\",CEILING(F6,0.5))","v":""},"","","","","","","","","","",""]
[{"$f":"+A6+1","v":2},null,null,null,null,null,null,null,null,null,null,null,null,null,null,null,null,null,null,null,null,null,null,null,null,null,null,null,null,null,2.2800000000000002,1.8399999999999999,1.8599999999999997,null,null,null,null,null,null,0,0,0,0,null,null,null,null,null,null,null,null,null,null,null,{"$f":"IF(F7=\"\",\"\",CEILING(F7,0.5))","v":""},{"$f":"IF(G7=\"\",\"\",CEILING(G7,0.5))","v":""},{"$f":"IF(H7=\"\",\"\",CEILING(H7,0.5))","v":""},{"$f":"IF(I7=\"\",\"\",CEILING(I7,0.5))","v":""},{"$f":"IF(J7=\"\",\"\",CEILING(J7,0.5))","v":""},{"$f":"IF(K7=\"\",\"\",CEILING(K7,0.5))","v":""},{"$f":"IF(L7=\"\",\"\",CEILING(L7,0.5))","v":""},{"$f":"IF(M7=\"\",\"\",CEILING(M7,0.5))","v":""},{"$f":"IF(N7=\"\",\"\",CEILING(N7,0.5))","v":""},{"$f":"IF(O7=\"\",\"\",CEILING(O7,0.5))","v":""},{"$f":"IF(P7=\"\",\"\",CEILING(P7,0.5))","v":""},{"$f":"IF(Q7=\"\",\"\",CEILING(Q7,0.5))","v":""}]
[3,null,null,null,null,null,null,null,null,null,null,null,null,null,null,null,null,null,null,null,null,null,null,null,null,null,null,null,null,null,2.0499999999999998,1.92,1.75,null,null,null,null,null,null,0,0,0,0,null,null,null,null,null,null,null,null,null,null,null,"","","","","","","","","","","",""]
[4,null,null,null,null,null,null,null,null,null,null,null,null,null,null,null,null,null,null,null,null,null,null,null,null,null,null,null,null,null,2.0600000000000005,1.8199999999999998,1.6500000000000001,null,null,null,null,null,null,0,0,0,0,null,null,null,null,null,null,null,null,null,null,null,"","","","","","","","","","","",""]
[5,null,null,null,null,null,null,null,null,null,null,null,null,null,null,null,null,null,null,null,null,null,null,null,null,null,null,null,null,null,1.9699999999999998,1.67,1.41,null,null,null,null,null,null,0,0,0,0,null,null,null,null,null,null,null,null,null,null,null,"","","","","","","","","","","",""]
[6,null,null,null,null,null,null,null,null,null,null,null,null,null,null,null,null,null,null,null,null,null,null,null,null,null,null,null,null,null,null,null,null,null,null,null,null,null,null,null,null,null,null,null,null,null,null,null,null,null,null,null,null,null,"","","","","","","","","","","",""]
[7,null,null,null,null,null,null,null,null,null,null,null,null,null,null,null,null,null,null,null,null,null,null,null,null,null,null,null,null,null,null,null,null,null,null,null,null,null,null,null,null,null,null,null,null,null,null,null,null,null,null,null,null,null,"","","","","","","","","","","",""]
[8,null,null,null,null,null,null,null,null,null,null,null,null,null,null,null,null,null,null,null,null,null,null,null,null,null,null,null,null,null,null,null,null,null,null,null,null,null,null,null,null,null,null,null,null,null,null,null,null,null,null,null,null,null,"","","","","","","","","","","",""]
[9,null,null,null,null,null,null,null,null,null,null,null,null,null,null,null,null,null,null,null,null,null,null,null,null,null,null,null,null,null,null,null,null,null,null,null,null,null,null,null,null,null,null,null,null,null,null,null,null,null,null,null,null,null,"","","","","","","","","","","",""]
[10,null,null,null,null,null,null,null,null,null,null,null,null,null,null,null,null,null,null,null,null,null,null,null,null,null,null,null,null,null,null,null,null,null,null,null,null,null,null,null,null,null,null,null,null,null,null,null,null,null,null,null,null,null,"","","","","","","","","","","",""]
[11,null,null,null,null,null,null,null,null,null,null,null,null,null,null,null,null,null,null,null,null,null,null,null,null,null,null,null,null,null,null,null,null,null,null,null,null,null,null,null,null,null,null,null,null,null,null,null,null,null,null,null,null,null,"","","","","","","","","","","",""]
[12,null,null,null,null,null,null,null,null,null,null,null,null,null,null,null,null,null,null,null,null,null,null,null,null,null,null,null,null,null,null,null,null,null,null,null,null,null,null,null,null,null,null,null,null,null,null,null,null,null,null,null,null,null,"","","","","","","","","","","",""]
[{"$f":"+A17+1","v":13},null,null,null,null,null,null,null,null,null,null,null,null,null,null,null,null,null,null,null,null,null,null,null,null,null,null,null,null,null,null,null,null,null,null,null,null,null,null,null,null,null,null,null,null,null,null,null,null,null,null,null,null,null,"","","","","","","","","","","",""]
[14]
[15]
[16]
["CYCLE TIME",null,{"$f":"IF(SUM(C6:C21)=0,\"\",SUM(C6:C21))","v":""},"","","","","","","","",{"$f":"IF(SUM(L6:L21)=0,\"\",SUM(L6:L21))","v":""},"","","","","",{"$f":"SUM(R6:R21)","v":0},{"$f":"SUM(S6:S21)","v":0},null,null,null,null,null,null,null,null,null,null,null,null,null,null,null,null,null,null,null,null,{"$f":"ROUND(C22,0)","v":{"$error":"#VALUE!"}},{"$f":"ROUND(D22,0)","v":{"$error":"#VALUE!"}},{"$f":"ROUND(E22,0)","v":{"$error":"#VALUE!"}},{"$f":"ROUND(F22,0)","v":{"$error":"#VALUE!"}}]
[]
[]
["Irregular Work (example : Take new polybox, etc)",null,null,null,null,null,null,null,null,null,null,null,null,null,null,null,null,null,null,{"$f":"COUNTA(B:B)","v":3}]
["NO","Irregular Work","Time",null,null,null,null,null,null,null,null,null,null,null,null,null,null,"Average Time","Piece","Time\n(sec/pc)",null,null,null,null,null,null,null,null,null,null,null,null,null,null,null,null,null,null,null,{"$f":"ROUND(C26,0)","v":{"$error":"#VALUE!"}}]
[null,null,1,2,3,4,5,6,7,8,9,10,11,12,13,14,15,null,null,null,null,null,null,null,null,null,null,null,null,null,null,null,null,null,null,null,null,null,null,{"$f":"ROUND(C27,0)","v":1},{"$f":"ROUND(D27,0)","v":2},3,4,5,6,7,8,9,10,11,12,13,14,15]
[1]
[{"$f":"+A28+1","v":2}]
[{"$f":"+A29+1","v":3}]
[{"$f":"+A30+1","v":4}]
[{"$f":"+A31+1","v":5}]
[6]
[7]
[8]
[9]
[10]
[null,null,null,null,null,null,null,null,null,null,null,null,null,null,null,null,null,null,null,{"$f":"SUM(T28:T37)","v":0}]
[]
[]
[]
[]
[]
[]
[]
[]
[]
[]
[]
[]
[]
[]
[]
[]
[]
[]
[]
[]
[]
[]
[]
[]
[]
[]
[]
[]
[]
[]
[]
[]
[]
[]
[]
[]
[]
[]
[]
[]
[]
[]
[]
[]
[]
[]
[]
[]
[]
[]
[]
[]
[]
[]
[]
[]
[]
[]
[]
[]
[]
[]
[]
[]
[]
[]
[]
[]
[]
[]
[]
[]
[]
[]
[]
[]
[]
[]
[]
[]
[]
[]
[]
[]
[]
[]
[]
[]
[]
[]
[]
[]
[]
[]
[]
[]
[]
[]
[]
[]
[]
[]
[]
[]
[]
[]
[]
[]
[]
[]
[]
[]
[]
[]
[]
[]
[]
[]
[]
[]
[]
[]
[]
[]
[]
[]
[]
[]
[]
[]
[]
[]
[]
[]
[]
[]
[]
[]
[]
[]
[]
[]
[]
[]
[]
[]
[]
[]
[]
[]
[]
[]
[]
[]
[]
[]
[]
[]
[]
[]
[]
[]
[]
[]
[]
[]
[]
[]
[]
[]
[]
[]
[]
[]
[]
[]
[]
[]
[]
[]
[]
[]
[]
[]
[]
[]
[]
[]
[]
[]
[]
[]
[]
[]
[]
[]
[]
[]
[]
[]
[]
[]
[]
[]
[]
[]
[]
[]
[]
[]
[]
[]
[]
[]
[]
[]
[]
[]
[]
[]
[]
[]
[]
[]
[]
[]
[]
[]
[]
[]
[]
[]
[]
[]
[]
[]
[]
[]
[]
[]
[]
[]
[]
[]
[]
[]
[]
[]
[]
[]
[]
[]
[]
[]
[]
[]
[]
[]
[]
[]
[]
[]
[]
[]
[]
[]
[]
[]
[]
[]
[]
[]
[]
[]
[]
[]
[]
[]
[]
[]
[]
[]
[]
[]
[]
[]
[]
[]
[]
[]
[]
[]
[]
[]
[]
[]
[]
[]
[]
[]
[]
[]
[]
[]
[]
[]
[]
[]
[]
[]
[]
[]
[]
[]
[]
[]
[]
[]
[]
[]
[]
[]
[]
[]
[]
[]
[]
[]
[]
[]
[]
[]
[]
[]
[]
[]
[]
[]
[]
[]
[]
[]
[]
[]
[]
[]
[]
[]
[]
[]
[]
[]
[]
[]
[]
[]
[]
[]
[]
[]
[]
[]
[]
[]
[]
[]
[]
[]
[]
[]
[]
[]
[]
[]
[]
[]
[]
[]
[]
[]
[]
[]
[]
[]
[]
[]
[]
[]
[]
[]
[]
[]
[]
[]
[]
[]
[]
[]
[]
[]
[]
[]
[]
[]
[]
[]
[]
[]
[]
[]
[]
[]
[]
[]
[]
[]
[]
[]
[]
[]
[]
[]
[]
[]
[]
[]
[]
[]
[]
[]
[]
[]
[]
[]
[]
[]
[]
[]
[]
[]
[]
[]
[]
[]
[]
[]
[]
[]
[]
[]
[]
[]
[]
[]
[]
[]
[]
[]
[]
[]
[]
[]
[]
[]
[]
[]
[]
[]
[null,null,null,null,null,null,null,null,null,null,null,null,null,null,null,null,null,null,10]

{"sheet":"1","index":2,"n_rows":54,"n_cols":228,"rows_kept":54,"cut":false,"hidden":false,"merged":[[34,4,36,4],[34,5,36,5],[36,6,38,6],[37,0,39,0],[37,1,39,3],[37,4,39,4],[37,5,39,5],[54,1,54,246],[48,6,50,6],[49,0,51,0],[49,1,51,3],[52,6,53,6],[46,0,48,0],[46,1,48,3],[46,4,48,4],[45,6,47,6],[52,0,53,3],[39,6,41,6],[40,0,42,0],[40,1,42,3],[40,4,42,4],[40,5,42,5],[42,6,44,6],[52,4,53,4],[43,0,45,0],[43,1,45,3],[43,4,45,4],[43,5,45,5],[49,4,51,4],[49,5,51,5],[46,5,48,5],[19,5,21,5],[21,6,23,6],[22,0,24,0],[22,1,24,3],[22,4,24,4],[22,5,24,5],[24,6,26,6],[25,0,27,0],[25,1,27,3],[25,4,27,4],[25,5,27,5],[27,6,29,6],[28,0,30,0],[28,1,30,3],[28,4,30,4],[28,5,30,5],[30,6,32,6],[31,0,33,0],[31,1,33,3],[31,4,33,4],[31,5,33,5],[33,6,35,6],[34,0,36,0],[34,1,36,3],[5,4,6,4],[5,5,6,5],[5,6,6,6],[12,6,14,6],[7,0,9,0],[7,5,9,5],[13,0,15,0],[10,1,12,3],[13,1,15,3],[13,4,15,4],[13,5,15,5],[7,6,8,6],[15,6,17,6],[9,6,11,6],[7,1,9,3],[7,4,9,4],[16,0,18,0],[1,227,1,246],[2,187,4,206],[2,207,4,226],[2,227,4,246],[10,0,12,0],[5,7,5,246],[2,127,2,156],[1,187,1,206],[1,207,1,226],[10,4,12,4],[10,5,12,5],[1,7,4,126],[2,157,2,186],[3,157,3,186],[4,157,4,186],[3,127,3,156],[4,127,4,156],[1,0,2,1],[1,2,2,6],[3,0,4,1],[3,2,4,6],[1,127,1,156],[5,0,6,0],[5,1,6,3],[16,1,18,3],[16,4,18,4],[16,5,18,5],[18,6,20,6],[19,0,21,0],[19,1,21,3],[19,4,21,4]]}
[2,null,null,null,null,null,null,27,0.5]
["PART NO",null,null,null,null,null,null,"STANDARDIZED WORK COMBINATION TABLE SHEET",null,null,null,null,null,null,null,null,null,null,null,null,null,null,null,null,null,null,null,null,null,null,null,null,null,null,null,null,null,null,null,null,null,null,null,null,null,null,null,null,null,null,null,null,null,null,null,null,null,null,null,null,null,null,null,null,null,null,null,null,null,null,null,null,null,null,null,null,null,null,null,null,null,null,null,null,null,null,null,null,null,null,null,null,null,null,null,null,null,null,null,null,null,null,null,null,null,null,null,null,null,null,null,null,null,null,null,null,null,null,null,null,null,null,null,null,null,null,null,"DATE TAKEN",null,null,null,null,null,null,null,null,null,null,null,null,null,null,null,null,null,null,null,null,null,null,null,null,null,null,null,null,null,null,null,null,null,null,null,null,null,null,null,null,null,null,null,null,null,null,null,null,null,null,null,null,null,null,null,null,null,null,null,"APPROVED",null,null,null,null,null,null,null,null,null,null,null,null,null,null,null,null,null,null,null,"CHECKED",null,null,null,null,null,null,null,null,null,null,null,null,null,null,null,null,null,null,null,"PREPARED"]
[null,null,null,null,null,null,null,null,null,null,null,null,null,null,null,null,null,null,null,null,null,null,null,null,null,null,null,null,null,null,null,null,null,null,null,null,null,null,null,null,null,null,null,null,null,null,null,null,null,null,null,null,null,null,null,null,null,null,null,null,null,null,null,null,null,null,null,null,null,null,null,null,null,null,null,null,null,null,null,null,null,null,null,null,null,null,null,null,null,null,null,null,null,null,null,null,null,null,null,null,null,null,null,null,null,null,null,null,null,null,null,null,null,null,null,null,null,null,null,null,null,null,null,null,null,null,null,"PCS / DAY"]
["PROCESS",null,null,null,null,null,null,null,null,null,null,null,null,null,null,null,null,null,null,null,null,null,null,null,null,null,null,null,null,null,null,null,null,null,null,null,null,null,null,null,null,null,null,null,null,null,null,null,null,null,null,null,null,null,null,null,null,null,null,null,null,null,null,null,null,null,null,null,null,null,null,null,null,null,null,null,null,null,null,null,null,null,null,null,null,null,null,null,null,null,null,null,null,null,null,null,null,null,null,null,null,null,null,null,null,null,null,null,null,null,null,null,null,null,null,null,null,null,null,null,null,null,null,null,null,null,null,"LINE TAKT TIME"]
[null,null,null,null,null,null,null,null,null,null,null,null,null,null,null,null,null,null,null,null,null,null,null,null,null,null,null,null,null,null,null,null,null,null,null,null,null,null,null,null,null,null,null,null,null,null,null,null,null,null,null,null,null,null,null,null,null,null,null,null,null,null,null,null,null,null,null,null,null,null,null,null,null,null,null,null,null,null,null,null,null,null,null,null,null,null,null,null,null,null,null,null,null,null,null,null,null,null,null,null,null,null,null,null,null,null,null,null,null,null,null,null,null,null,null,null,null,null,null,null,null,null,null,null,null,null,null,"SECTION / LINE"]
["NO","WORK NAME",null,null,"MAN","AUTO","WALK"]
[]
[]
[]
[]
[]
[]
[]
[]
[]
[]
[]
[]
[]
[]
[]
[]
[]
[]
[]
[]
[]
[]
[]
[]
[]
[]
[]
[]
[]
[]
[]
[]
[]
[]
[]
[]
[]
[]
[]
[]
[]
[]
[]
[]
[]
[]
["TOTAL",null,null,null,{"$f":"SUM(E8:E52)","v":0},"Wait",{"$f":"SUM(G8:G52)","v":0},"akhir"]
[null,null,null,null,null,{"$f":"H1","v":27}]

{"sheet":"TSS2","index":3,"n_rows":37,"n_cols":66,"rows_kept":37,"cut":false,"hidden":true,"merged":[[3,20,4,20],[3,21,3,25],[3,26,4,26],[20,0,20,1],[1,23,1,25],[2,14,2,16],[2,23,2,25],[3,0,4,0],[3,2,3,16],[3,17,4,17],[3,18,4,18],[3,19,4,19],[1,0,2,1],[1,2,2,5],[1,6,2,13],[1,14,1,16],[24,19,25,19],[24,0,25,0],[24,1,25,1],[24,2,24,16],[24,17,25,17],[24,18,25,18]]}
[null,null,{"$f":"COUNTA(B:B)-1","v":2},{"$f":"COUNTA(C6:Q6)","v":0}]
["PROCESS NAME",null,null,null,null,null,"TIME STUDY SHEET",null,null,null,null,null,null,null,"PART NO",null,null,null,"SECTION LINE",null,null,null,null,"DATE"]
[null,null,null,null,null,null,null,null,null,null,null,null,null,null,"TYPE",null,null,null,"TAKT TIME",null,null,null,null,"MEASURED BY"]
["NO","WORK NAME\nFor walk activity, please write :","Manual",null,null,null,null,null,null,null,null,null,null,null,null,null,null,"OPERATION TIME","ADJUSTMENT\n(Will be used for SWCT Line)","OPERATION","MACHINE NO","MACHINE TIME",null,null,null,null,"AUTO \n(MACHINE TIME)",null,null,null,{"$f":"SUM(AE6:AE105)","v":11.07},{"$f":"SUM(AF6:AF105)","v":0},{"$f":"SUM(AG6:AG105)","v":0}]
[null,"Walk; walk; walking; return; Return",1,2,3,4,5,6,7,8,9,10,11,12,13,14,15,null,null,null,null,1,2,3,4,5]
[1,null,null,null,null,null,null,null,null,null,null,null,null,null,null,null,null,null,null,null,null,null,null,null,null,null,null,null,null,null,1.87,null,null,null,null,null,null,null,null,{"$f":"ROUND(C6,0)","v":0},0,0,null,null,null,null,null,null,null,null,null,null,null,null,{"$f":"IF(F6=\"\",\"\",CEILING(F6,0.5))","v":""},"","","","","","","","","","",""]
[{"$f":"+A6+1","v":2},null,null,null,null,null,null,null,null,null,null,null,null,null,null,null,null,null,null,null,null,null,null,null,null,null,null,null,null,null,1.7299999999999995,null,null,null,null,null,null,null,null,0,0,0,null,null,null,null,null,null,null,null,null,null,null,null,"","","","","","","","","","","",""]
[3,null,null,null,null,null,null,null,null,null,null,null,null,null,null,null,null,null,null,null,null,null,null,null,null,null,null,null,null,null,1.5699999999999998,null,null,null,null,null,null,null,null,0,0,0,null,null,null,null,null,null,null,null,null,null,null,null,"","","","","","","","","","","",""]
[4,null,null,null,null,null,null,null,null,null,null,null,null,null,null,null,null,null,null,null,null,null,null,null,null,null,null,null,null,null,1.6600000000000004,null,null,null,null,null,null,null,null,0,0,0,null,null,null,null,null,null,null,null,null,null,null,null,"","","","","","","","","","","",""]
[5,null,null,null,null,null,null,null,null,null,null,null,null,null,null,null,null,null,null,null,null,null,null,null,null,null,null,null,null,null,1.42,null,null,null,null,null,null,null,null,0,0,0,null,null,null,null,null,null,null,null,null,null,null,null,"","","","","","","","","","","",""]
[6,null,null,null,null,null,null,null,null,null,null,null,null,null,null,null,null,null,null,null,null,null,null,null,null,null,null,null,null,null,1.45,null,null,null,null,null,null,null,null,0,0,0,null,null,null,null,null,null,null,null,null,null,null,null,"","","","","","","","","","","",""]
[7,null,null,null,null,null,null,null,null,null,null,null,null,null,null,null,null,null,null,null,null,null,null,null,null,null,null,null,null,null,1.37,null,null,null,null,null,null,null,null,0,0,0,null,null,null,null,null,null,null,null,null,null,null,null,"","","","","","","","","","","",""]
[8,null,null,null,null,null,null,null,null,null,null,null,null,null,null,null,null,null,null,null,null,null,null,null,null,null,null,null,null,null,null,null,null,null,null,null,null,null,null,null,null,null,null,null,null,null,null,null,null,null,null,null,null,null,"","","","","","","","","","","",""]
[9,null,null,null,null,null,null,null,null,null,null,null,null,null,null,null,null,null,null,null,null,null,null,null,null,null,null,null,null,null,null,null,null,null,null,null,null,null,null,null,null,null,null,null,null,null,null,null,null,null,null,{"$f":"IF(C14=\"\",\"\",CEILING(C14,0.5))","v":""},"","","","","","","","","","","","","",""]
[10,null,null,null,null,null,null,null,null,null,null,null,null,null,null,null,null,null,null,null,null,null,null,null,null,null,null,null,null,null,null,null,null,null,null,null,null,null,null,null,null,null,null,null,null,null,null,null,null,null,null,"","","","","","","","","","","","","","",""]
[11,null,null,null,null,null,null,null,null,null,null,null,null,null,null,null,null,null,null,null,null,null,null,null,null,null,null,null,null,null,null,null,null,null,null,null,null,null,null,null,null,null,null,null,null,null,null,null,null,null,null,"","","","","","","","","","","","","","",""]
[12,null,null,null,null,null,null,null,null,null,null,null,null,null,null,null,null,null,null,null,null,null,null,null,null,null,null,null,null,null,null,null,null,null,null,null,null,null,null,null,null,null,null,null,null,null,null,null,null,null,null,"","","","","","","","","","","","","","",""]
[13,null,null,null,null,null,null,null,null,null,null,null,null,null,null,null,null,null,null,null,null,null,null,null,null,null,null,null,null,null,null,null,null,null,null,null,null,null,null,null,null,null,null,null,null,null,null,null,null,null,null,"","","","","","","","","","","","","","",""]
[14,null,null,null,null,null,null,null,null,null,null,null,null,null,null,null,null,null,null,null,null,null,null,null,null,null,null,null,null,null,null,null,null,null,null,null,null,null,null,null,null,null,null,null,null,null,null,null,null,null,null,"","","","","","","","","","","","","","",""]
[15,null,null,null,null,null,null,null,null,null,null,null,null,null,null,null,null,null,null,null,null,null,null,null,null,null,null,null,null,null,null,null,null,null,null,null,null,null,null,null,null,null,null,null,null,null,null,null,null,null,null,"","","","","","","","","","","","","","",""]
["CYCLE TIME",null,{"$f":"IF(SUM(C6:C20)=0,\"\",SUM(C6:C20))","v":""},{"$f":"IF(SUM(D6:D20)=0,\"\",SUM(D6:D20))","v":""},"","","","","","","","","","","","","",{"$f":"SUM(R6:R20)","v":0},{"$f":"SUM(S6:S20)","v":0},null,null,null,null,null,null,null,null,null,null,null,null,null,null,null,null,null,null,null,null,{"$f":"ROUND(C21,0)","v":{"$error":"#VALUE!"}},{"$error":"#VALUE!"},{"$error":"#VALUE!"},{"$error":"#VALUE!"},{"$error":"#VALUE!"},{"$error":"#VALUE!"},{"$error":"#VALUE!"},{"$error":"#VALUE!"},{"$error":"#VALUE!"},{"$error":"#VALUE!"},{"$error":"#VALUE!"},{"$error":"#VALUE!"},{"$error":"#VALUE!"},{"$error":"#VALUE!"},{"$error":"#VALUE!"}]
[]
[]
["Irregular Work (example : Take new polybox, etc)",null,null,null,null,null,null,null,null,null,null,null,null,null,null,null,null,null,null,{"$f":"COUNTA(B:B)","v":3}]
["NO","Irregular Work","Time",null,null,null,null,null,null,null,null,null,null,null,null,null,null,"Average Time","Piece","Time\n(sec/pc)",null,null,null,null,null,null,null,null,null,null,null,null,null,null,null,null,null,null,null,{"$f":"ROUND(C25,0)","v":{"$error":"#VALUE!"}}]
[null,null,1,2,3,4,5,6,7,8,9,10,11,12,13,14,15,null,null,null,null,null,null,null,null,null,null,null,null,null,null,null,null,null,null,null,null,null,null,{"$f":"ROUND(C26,0)","v":1},{"$f":"ROUND(D26,0)","v":2},3,4,5,6,7,8,9,10,11,12,13,14,15]
[1,null,null,null,null,null,null,null,null,null,null,null,null,null,null,null,null,null,null,null,null,null,null,null,null,null,null,null,null,null,null,null,null,null,null,null,null,null,null,{"$f":"ROUND(C27,0)","v":0},{"$f":"ROUND(D27,0)","v":0}]
[{"$f":"+A27+1","v":2}]
[{"$f":"+A28+1","v":3}]
[{"$f":"+A29+1","v":4}]
[{"$f":"+A30+1","v":5}]
[6]
[7]
[8]
[9]
[10]
[null,null,null,null,null,null,null,null,null,null,null,null,null,null,null,null,null,null,null,{"$f":"SUM(T27:T36)","v":0}]

{"sheet":"2","index":4,"n_rows":54,"n_cols":228,"rows_kept":54,"cut":false,"hidden":true,"merged":[[1,207,1,226],[1,7,4,126],[1,187,1,206],[5,0,6,0],[5,1,6,3],[5,4,6,4],[5,5,6,5],[5,6,6,6],[5,7,5,246],[2,227,4,246],[7,0,9,0],[7,1,9,3],[7,4,9,4],[7,5,9,5],[7,6,8,6],[9,6,11,6],[10,0,12,0],[10,1,12,3],[10,4,12,4],[10,5,12,5],[12,6,14,6],[13,0,15,0],[13,1,15,3],[13,4,15,4],[13,5,15,5],[15,6,17,6],[16,0,18,0],[16,1,18,3],[16,4,18,4],[16,5,18,5],[18,6,20,6],[19,0,21,0],[19,1,21,3],[19,4,21,4],[33,6,35,6],[34,0,36,0],[34,1,36,3],[34,4,36,4],[34,5,36,5],[19,5,21,5],[21,6,23,6],[22,0,24,0],[22,1,24,3],[22,4,24,4],[22,5,24,5],[24,6,26,6],[25,0,27,0],[25,1,27,3],[25,4,27,4],[25,5,27,5],[27,6,29,6],[28,0,30,0],[28,1,30,3],[28,4,30,4],[28,5,30,5],[43,5,45,5],[45,6,47,6],[46,0,48,0],[46,1,48,3],[46,4,48,4],[46,5,48,5],[30,6,32,6],[49,0,51,0],[49,1,51,3],[49,4,51,4],[49,5,51,5],[37,0,39,0],[37,1,39,3],[37,4,39,4],[37,5,39,5],[39,6,41,6],[40,0,42,0],[40,1,42,3],[40,4,42,4],[40,5,42,5],[31,0,33,0],[31,1,33,3],[31,4,33,4],[31,5,33,5],[54,1,54,246],[48,6,50,6],[52,6,53,6],[42,6,44,6],[36,6,38,6],[2,157,2,186],[3,127,3,156],[3,157,3,186],[4,127,4,156],[4,157,4,186],[1,0,2,1],[1,2,2,6],[3,0,4,1],[3,2,4,6],[1,127,1,156],[52,0,53,3],[52,4,53,4],[43,0,45,0],[43,1,45,3],[43,4,45,4],[2,127,2,156],[1,227,1,246],[2,187,4,206],[2,207,4,226]]}
[2,null,null,null,null,null,null,0,0.5]
["PART NO",null,null,null,null,null,null,"STANDARDIZED WORK COMBINATION TABLE SHEET",null,null,null,null,null,null,null,null,null,null,null,null,null,null,null,null,null,null,null,null,null,null,null,null,null,null,null,null,null,null,null,null,null,null,null,null,null,null,null,null,null,null,null,null,null,null,null,null,null,null,null,null,null,null,null,null,null,null,null,null,null,null,null,null,null,null,null,null,null,null,null,null,null,null,null,null,null,null,null,null,null,null,null,null,null,null,null,null,null,null,null,null,null,null,null,null,null,null,null,null,null,null,null,null,null,null,null,null,null,null,null,null,null,null,null,null,null,null,null,"DATE TAKEN",null,null,null,null,null,null,null,null,null,null,null,null,null,null,null,null,null,null,null,null,null,null,null,null,null,null,null,null,null,null,null,null,null,null,null,null,null,null,null,null,null,null,null,null,null,null,null,null,null,null,null,null,null,null,null,null,null,null,null,"APPROVED",null,null,null,null,null,null,null,null,null,null,null,null,null,null,null,null,null,null,null,"CHECKED",null,null,null,null,null,null,null,null,null,null,null,null,null,null,null,null,null,null,null,"PREPARED"]
[null,null,null,null,null,null,null,null,null,null,null,null,null,null,null,null,null,null,null,null,null,null,null,null,null,null,null,null,null,null,null,null,null,null,null,null,null,null,null,null,null,null,null,null,null,null,null,null,null,null,null,null,null,null,null,null,null,null,null,null,null,null,null,null,null,null,null,null,null,null,null,null,null,null,null,null,null,null,null,null,null,null,null,null,null,null,null,null,null,null,null,null,null,null,null,null,null,null,null,null,null,null,null,null,null,null,null,null,null,null,null,null,null,null,null,null,null,null,null,null,null,null,null,null,null,null,null,"PCS / DAY"]
["PROCESS",null,null,null,null,null,null,null,null,null,null,null,null,null,null,null,null,null,null,null,null,null,null,null,null,null,null,null,null,null,null,null,null,null,null,null,null,null,null,null,null,null,null,null,null,null,null,null,null,null,null,null,null,null,null,null,null,null,null,null,null,null,null,null,null,null,null,null,null,null,null,null,null,null,null,null,null,null,null,null,null,null,null,null,null,null,null,null,null,null,null,null,null,null,null,null,null,null,null,null,null,null,null,null,null,null,null,null,null,null,null,null,null,null,null,null,null,null,null,null,null,null,null,null,null,null,null,"LINE TAKT TIME"]
[null,null,null,null,null,null,null,null,null,null,null,null,null,null,null,null,null,null,null,null,null,null,null,null,null,null,null,null,null,null,null,null,null,null,null,null,null,null,null,null,null,null,null,null,null,null,null,null,null,null,null,null,null,null,null,null,null,null,null,null,null,null,null,null,null,null,null,null,null,null,null,null,null,null,null,null,null,null,null,null,null,null,null,null,null,null,null,null,null,null,null,null,null,null,null,null,null,null,null,null,null,null,null,null,null,null,null,null,null,null,null,null,null,null,null,null,null,null,null,null,null,null,null,null,null,null,null,"SECTION / LINE"]
["NO","WORK NAME",null,null,"MAN","AUTO","WALK"]
[]
[]
[]
[]
[]
[]
[]
[]
[]
[]
[]
[]
[]
[]
[]
[]
[]
[]
[]
[]
[]
[]
[]
[]
[]
[]
[]
[]
[]
[]
[]
[]
[]
[]
[]
[]
[]
[]
[]
[]
[]
[]
[]
[]
[]
[]
["TOTAL",null,null,null,{"$f":"SUM(E8:E52)","v":0},"Wait",{"$f":"SUM(G8:G52)","v":0},"akhir"]
[null,null,null,null,null,{"$f":"H1","v":0}]

{"sheet":"TSS3","index":5,"n_rows":37,"n_cols":66,"rows_kept":37,"cut":false,"hidden":true,"merged":[[3,20,4,20],[3,21,3,25],[3,26,4,26],[20,0,20,1],[1,23,1,25],[2,14,2,16],[2,23,2,25],[3,0,4,0],[3,2,3,16],[3,17,4,17],[3,18,4,18],[3,19,4,19],[1,0,2,1],[1,2,2,5],[1,6,2,13],[1,14,1,16],[24,19,25,19],[24,0,25,0],[24,1,25,1],[24,2,24,16],[24,17,25,17],[24,18,25,18]]}
[null,null,{"$f":"COUNTA(B:B)-1","v":2},{"$f":"COUNTA(C6:Q6)","v":0}]
["PROCESS NAME",null,null,null,null,null,"TIME STUDY SHEET",null,null,null,null,null,null,null,"PART NO",null,null,null,"SECTION LINE",null,null,null,null,"DATE"]
[null,null,null,null,null,null,null,null,null,null,null,null,null,null,"TYPE",null,null,null,"TAKT TIME",null,null,null,null,"MEASURED BY"]
["NO","WORK NAME\nFor walk activity, please write :","Manual",null,null,null,null,null,null,null,null,null,null,null,null,null,null,"OPERATION TIME","ADJUSTMENT\n(Will be used for SWCT Line)","OPERATION","MACHINE NO","MACHINE TIME",null,null,null,null,"AUTO \n(MACHINE TIME)",null,null,null,{"$f":"SUM(AE6:AE105)","v":11.07},{"$f":"SUM(AF6:AF105)","v":0},{"$f":"SUM(AG6:AG105)","v":0}]
[null,"Walk; walk; walking; return; Return",1,2,3,4,5,6,7,8,9,10,11,12,13,14,15,null,null,null,null,1,2,3,4,5]
[1,null,null,null,null,null,null,null,null,null,null,null,null,null,null,null,null,null,null,null,null,null,null,null,null,null,null,null,null,null,1.87,null,null,null,null,null,null,null,null,{"$f":"ROUND(C6,0)","v":0},0,0,null,null,null,null,null,null,null,null,null,null,null,null,{"$f":"IF(F6=\"\",\"\",CEILING(F6,0.5))","v":""},"","","","","","","","","","",""]
[{"$f":"+A6+1","v":2},null,null,null,null,null,null,null,null,null,null,null,null,null,null,null,null,null,null,null,null,null,null,null,null,null,null,null,null,null,1.7299999999999995,null,null,null,null,null,null,null,null,0,0,0,null,null,null,null,null,null,null,null,null,null,null,null,"","","","","","","","","","","",""]
[3,null,null,null,null,null,null,null,null,null,null,null,null,null,null,null,null,null,null,null,null,null,null,null,null,null,null,null,null,null,1.5699999999999998,null,null,null,null,null,null,null,null,0,0,0,null,null,null,null,null,null,null,null,null,null,null,null,"","","","","","","","","","","",""]
[4,null,null,null,null,null,null,null,null,null,null,null,null,null,null,null,null,null,null,null,null,null,null,null,null,null,null,null,null,null,1.6600000000000004,null,null,null,null,null,null,null,null,0,0,0,null,null,null,null,null,null,null,null,null,null,null,null,"","","","","","","","","","","",""]
[5,null,null,null,null,null,null,null,null,null,null,null,null,null,null,null,null,null,null,null,null,null,null,null,null,null,null,null,null,null,1.42,null,null,null,null,null,null,null,null,0,0,0,null,null,null,null,null,null,null,null,null,null,null,null,"","","","","","","","","","","",""]
[6,null,null,null,null,null,null,null,null,null,null,null,null,null,null,null,null,null,null,null,null,null,null,null,null,null,null,null,null,null,1.45,null,null,null,null,null,null,null,null,0,0,0,null,null,null,null,null,null,null,null,null,null,null,null,"","","","","","","","","","","",""]
[7,null,null,null,null,null,null,null,null,null,null,null,null,null,null,null,null,null,null,null,null,null,null,null,null,null,null,null,null,null,1.37,null,null,null,null,null,null,null,null,0,0,0,null,null,null,null,null,null,null,null,null,null,null,null,"","","","","","","","","","","",""]
[8,null,null,null,null,null,null,null,null,null,null,null,null,null,null,null,null,null,null,null,null,null,null,null,null,null,null,null,null,null,null,null,null,null,null,null,null,null,null,null,null,null,null,null,null,null,null,null,null,null,null,null,null,null,"","","","","","","","","","","",""]
[9,null,null,null,null,null,null,null,null,null,null,null,null,null,null,null,null,null,null,null,null,null,null,null,null,null,null,null,null,null,null,null,null,null,null,null,null,null,null,null,null,null,null,null,null,null,null,null,null,null,null,{"$f":"IF(C14=\"\",\"\",CEILING(C14,0.5))","v":""},"","","","","","","","","","","","","",""]
[10,null,null,null,null,null,null,null,null,null,null,null,null,null,null,null,null,null,null,null,null,null,null,null,null,null,null,null,null,null,null,null,null,null,null,null,null,null,null,null,null,null,null,null,null,null,null,null,null,null,null,"","","","","","","","","","","","","","",""]
[11,null,null,null,null,null,null,null,null,null,null,null,null,null,null,null,null,null,null,null,null,null,null,null,null,null,null,null,null,null,null,null,null,null,null,null,null,null,null,null,null,null,null,null,null,null,null,null,null,null,null,"","","","","","","","","","","","","","",""]
[12,null,null,null,null,null,null,null,null,null,null,null,null,null,null,null,null,null,null,null,null,null,null,null,null,null,null,null,null,null,null,null,null,null,null,null,null,null,null,null,null,null,null,null,null,null,null,null,null,null,null,"","","","","","","","","","","","","","",""]
[13,null,null,null,null,null,null,null,null,null,null,null,null,null,null,null,null,null,null,null,null,null,null,null,null,null,null,null,null,null,null,null,null,null,null,null,null,null,null,null,null,null,null,null,null,null,null,null,null,null,null,"","","","","","","","","","","","","","",""]
[14,null,null,null,null,null,null,null,null,null,null,null,null,null,null,null,null,null,null,null,null,null,null,null,null,null,null,null,null,null,null,null,null,null,null,null,null,null,null,null,null,null,null,null,null,null,null,null,null,null,null,"","","","","","","","","","","","","","",""]
[15,null,null,null,null,null,null,null,null,null,null,null,null,null,null,null,null,null,null,null,null,null,null,null,null,null,null,null,null,null,null,null,null,null,null,null,null,null,null,null,null,null,null,null,null,null,null,null,null,null,null,"","","","","","","","","","","","","","",""]
["CYCLE TIME",null,{"$f":"IF(SUM(C6:C20)=0,\"\",SUM(C6:C20))","v":""},{"$f":"IF(SUM(D6:D20)=0,\"\",SUM(D6:D20))","v":""},"","","","","","","","","","","","","",{"$f":"SUM(R6:R20)","v":0},{"$f":"SUM(S6:S20)","v":0},null,null,null,null,null,null,null,null,null,null,null,null,null,null,null,null,null,null,null,null,{"$f":"ROUND(C21,0)","v":{"$error":"#VALUE!"}},{"$error":"#VALUE!"},{"$error":"#VALUE!"},{"$error":"#VALUE!"},{"$error":"#VALUE!"},{"$error":"#VALUE!"},{"$error":"#VALUE!"},{"$error":"#VALUE!"},{"$error":"#VALUE!"},{"$error":"#VALUE!"},{"$error":"#VALUE!"},{"$error":"#VALUE!"},{"$error":"#VALUE!"},{"$error":"#VALUE!"},{"$error":"#VALUE!"}]
[]
[]
["Irregular Work (example : Take new polybox, etc)",null,null,null,null,null,null,null,null,null,null,null,null,null,null,null,null,null,null,{"$f":"COUNTA(B:B)","v":3}]
["NO","Irregular Work","Time",null,null,null,null,null,null,null,null,null,null,null,null,null,null,"Average Time","Piece","Time\n(sec/pc)",null,null,null,null,null,null,null,null,null,null,null,null,null,null,null,null,null,null,null,{"$f":"ROUND(C25,0)","v":{"$error":"#VALUE!"}}]
[null,null,1,2,3,4,5,6,7,8,9,10,11,12,13,14,15,null,null,null,null,null,null,null,null,null,null,null,null,null,null,null,null,null,null,null,null,null,null,{"$f":"ROUND(C26,0)","v":1},{"$f":"ROUND(D26,0)","v":2},3,4,5,6,7,8,9,10,11,12,13,14,15]
[1,null,null,null,null,null,null,null,null,null,null,null,null,null,null,null,null,null,null,null,null,null,null,null,null,null,null,null,null,null,null,null,null,null,null,null,null,null,null,{"$f":"ROUND(C27,0)","v":0},{"$f":"ROUND(D27,0)","v":0}]
[{"$f":"+A27+1","v":2}]
[{"$f":"+A28+1","v":3}]
[{"$f":"+A29+1","v":4}]
[5]
[6]
[7]
[8]
[9]
[10]
[null,null,null,null,null,null,null,null,null,null,null,null,null,null,null,null,null,null,null,{"$f":"SUM(T27:T36)","v":0}]

{"sheet":"3","index":6,"n_rows":54,"n_cols":228,"rows_kept":54,"cut":false,"hidden":true,"merged":[[5,0,6,0],[5,1,6,3],[5,4,6,4],[5,5,6,5],[5,6,6,6],[5,7,5,246],[7,0,9,0],[7,1,9,3],[7,4,9,4],[7,5,9,5],[7,6,8,6],[9,6,11,6],[10,0,12,0],[10,1,12,3],[10,4,12,4],[10,5,12,5],[12,6,14,6],[13,0,15,0],[13,1,15,3],[13,4,15,4],[13,5,15,5],[15,6,17,6],[16,0,18,0],[16,1,18,3],[16,4,18,4],[16,5,18,5],[18,6,20,6],[19,0,21,0],[19,1,21,3],[19,4,21,4],[19,5,21,5],[21,6,23,6],[22,0,24,0],[22,1,24,3],[22,4,24,4],[22,5,24,5],[24,6,26,6],[25,0,27,0],[25,1,27,3],[25,4,27,4],[25,5,27,5],[27,6,29,6],[28,0,30,0],[28,1,30,3],[28,4,30,4],[28,5,30,5],[30,6,32,6],[31,0,33,0],[31,1,33,3],[31,4,33,4],[31,5,33,5],[33,6,35,6],[34,0,36,0],[34,1,36,3],[34,4,36,4],[34,5,36,5],[36,6,38,6],[37,0,39,0],[37,1,39,3],[37,4,39,4],[37,5,39,5],[39,6,41,6],[40,0,42,0],[40,1,42,3],[40,4,42,4],[40,5,42,5],[42,6,44,6],[43,0,45,0],[43,1,45,3],[43,4,45,4],[43,5,45,5],[45,6,47,6],[46,0,48,0],[46,1,48,3],[46,4,48,4],[46,5,48,5],[54,1,54,246],[48,6,50,6],[52,6,53,6],[49,0,51,0],[49,1,51,3],[49,4,51,4],[49,5,51,5],[52,0,53,3],[52,4,53,4],[1,227,1,246],[2,187,4,206],[2,157,2,186],[3,157,3,186],[2,207,4,226],[2,227,4,246],[1,207,1,226],[1,187,1,206],[4,157,4,186],[1,0,2,1],[1,2,2,6],[3,0,4,1],[3,2,4,6],[1,127,1,156],[2,127,2,156],[3,127,3,156],[4,127,4,156],[1,7,4,126]]}
[2,null,null,null,null,null,null,0,0.5]
["PART NO",null,null,null,null,null,null,"STANDARDIZED WORK COMBINATION TABLE SHEET",null,null,null,null,null,null,null,null,null,null,null,null,null,null,null,null,null,null,null,null,null,null,null,null,null,null,null,null,null,null,null,null,null,null,null,null,null,null,null,null,null,null,null,null,null,null,null,null,null,null,null,null,null,null,null,null,null,null,null,null,null,null,null,null,null,null,null,null,null,null,null,null,null,null,null,null,null,null,null,null,null,null,null,null,null,null,null,null,null,null,null,null,null,null,null,null,null,null,null,null,null,null,null,null,null,null,null,null,null,null,null,null,null,null,null,null,null,null,null,"DATE TAKEN",null,null,null,null,null,null,null,null,null,null,null,null,null,null,null,null,null,null,null,null,null,null,null,null,null,null,null,null,null,null,null,null,null,null,null,null,null,null,null,null,null,null,null,null,null,null,null,null,null,null,null,null,null,null,null,null,null,null,null,"APPROVED",null,null,null,null,null,null,null,null,null,null,null,null,null,null,null,null,null,null,null,"CHECKED",null,null,null,null,null,null,null,null,null,null,null,null,null,null,null,null,null,null,null,"PREPARED"]
[null,null,null,null,null,null,null,null,null,null,null,null,null,null,null,null,null,null,null,null,null,null,null,null,null,null,null,null,null,null,null,null,null,null,null,null,null,null,null,null,null,null,null,null,null,null,null,null,null,null,null,null,null,null,null,null,null,null,null,null,null,null,null,null,null,null,null,null,null,null,null,null,null,null,null,null,null,null,null,null,null,null,null,null,null,null,null,null,null,null,null,null,null,null,null,null,null,null,null,null,null,null,null,null,null,null,null,null,null,null,null,null,null,null,null,null,null,null,null,null,null,null,null,null,null,null,null,"PCS / DAY"]
["PROCESS",null,null,null,null,null,null,null,null,null,null,null,null,null,null,null,null,null,null,null,null,null,null,null,null,null,null,null,null,null,null,null,null,null,null,null,null,null,null,null,null,null,null,null,null,null,null,null,null,null,null,null,null,null,null,null,null,null,null,null,null,null,null,null,null,null,null,null,null,null,null,null,null,null,null,null,null,null,null,null,null,null,null,null,null,null,null,null,null,null,null,null,null,null,null,null,null,null,null,null,null,null,null,null,null,null,null,null,null,null,null,null,null,null,null,null,null,null,null,null,null,null,null,null,null,null,null,"LINE TAKT TIME"]
[null,null,null,null,null,null,null,null,null,null,null,null,null,null,null,null,null,null,null,null,null,null,null,null,null,null,null,null,null,null,null,null,null,null,null,null,null,null,null,null,null,null,null,null,null,null,null,null,null,null,null,null,null,null,null,null,null,null,null,null,null,null,null,null,null,null,null,null,null,null,null,null,null,null,null,null,null,null,null,null,null,null,null,null,null,null,null,null,null,null,null,null,null,null,null,null,null,null,null,null,null,null,null,null,null,null,null,null,null,null,null,null,null,null,null,null,null,null,null,null,null,null,null,null,null,null,null,"SECTION / LINE"]
["NO","WORK NAME",null,null,"MAN","AUTO","WALK"]
[]
[]
[]
[]
[]
[]
[]
[]
[]
[]
[]
[]
[]
[]
[]
[]
[]
[]
[]
[]
[]
[]
[]
[]
[]
[]
[]
[]
[]
[]
[]
[]
[]
[]
[]
[]
[]
[]
[]
[]
[]
[]
[]
[]
[]
[]
["TOTAL",null,null,null,{"$f":"SUM(E8:E52)","v":0},"Wait",{"$f":"SUM(G8:G52)","v":0},"akhir"]
[null,null,null,null,null,{"$f":"H1","v":0}]

{"sheet":"TSS4","index":7,"n_rows":37,"n_cols":66,"rows_kept":37,"cut":false,"hidden":true,"merged":[[3,20,4,20],[3,21,3,25],[3,26,4,26],[20,0,20,1],[1,23,1,25],[2,14,2,16],[2,23,2,25],[3,0,4,0],[3,2,3,16],[3,17,4,17],[3,18,4,18],[3,19,4,19],[1,0,2,1],[1,2,2,5],[1,6,2,13],[1,14,1,16],[24,19,25,19],[24,0,25,0],[24,1,25,1],[24,2,24,16],[24,17,25,17],[24,18,25,18]]}
[null,null,{"$f":"COUNTA(B:B)-1","v":2},{"$f":"COUNTA(C6:Q6)","v":0}]
["PROCESS NAME",null,null,null,null,null,"TIME STUDY SHEET",null,null,null,null,null,null,null,"PART NO",null,null,null,"SECTION LINE",null,null,null,null,"DATE"]
[null,null,null,null,null,null,null,null,null,null,null,null,null,null,"TYPE",null,null,null,"TAKT TIME",null,null,null,null,"MEASURED BY"]
["NO","WORK NAME\nFor walk activity, please write :","Manual",null,null,null,null,null,null,null,null,null,null,null,null,null,null,"OPERATION TIME","ADJUSTMENT\n(Will be used for SWCT Line)","OPERATION","MACHINE NO","MACHINE TIME",null,null,null,null,"AUTO \n(MACHINE TIME)",null,null,null,{"$f":"SUM(AE6:AE105)","v":11.07},{"$f":"SUM(AF6:AF105)","v":0},{"$f":"SUM(AG6:AG105)","v":0}]
[null,"Walk; walk; walking; return; Return",1,2,3,4,5,6,7,8,9,10,11,12,13,14,15,null,null,null,null,1,2,3,4,5]
[1,null,null,null,null,null,null,null,null,null,null,null,null,null,null,null,null,null,null,null,null,null,null,null,null,null,null,null,null,null,1.87,null,null,null,null,null,null,null,null,{"$f":"ROUND(C6,0)","v":0},0,0,null,null,null,null,null,null,null,null,null,null,null,null,{"$f":"IF(F6=\"\",\"\",CEILING(F6,0.5))","v":""},"","","","","","","","","","",""]
[{"$f":"+A6+1","v":2},null,null,null,null,null,null,null,null,null,null,null,null,null,null,null,null,null,null,null,null,null,null,null,null,null,null,null,null,null,1.7299999999999995,null,null,null,null,null,null,null,null,0,0,0,null,null,null,null,null,null,null,null,null,null,null,null,"","","","","","","","","","","",""]
[3,null,null,null,null,null,null,null,null,null,null,null,null,null,null,null,null,null,null,null,null,null,null,null,null,null,null,null,null,null,1.5699999999999998,null,null,null,null,null,null,null,null,0,0,0,null,null,null,null,null,null,null,null,null,null,null,null,"","","","","","","","","","","",""]
[4,null,null,null,null,null,null,null,null,null,null,null,null,null,null,null,null,null,null,null,null,null,null,null,null,null,null,null,null,null,1.6600000000000004,null,null,null,null,null,null,null,null,0,0,0,null,null,null,null,null,null,null,null,null,null,null,null,"","","","","","","","","","","",""]
[5,null,null,null,null,null,null,null,null,null,null,null,null,null,null,null,null,null,null,null,null,null,null,null,null,null,null,null,null,null,1.42,null,null,null,null,null,null,null,null,0,0,0,null,null,null,null,null,null,null,null,null,null,null,null,"","","","","","","","","","","",""]
[6,null,null,null,null,null,null,null,null,null,null,null,null,null,null,null,null,null,null,null,null,null,null,null,null,null,null,null,null,null,1.45,null,null,null,null,null,null,null,null,0,0,0,null,null,null,null,null,null,null,null,null,null,null,null,"","","","","","","","","","","",""]
[7,null,null,null,null,null,null,null,null,null,null,null,null,null,null,null,null,null,null,null,null,null,null,null,null,null,null,null,null,null,1.37,null,null,null,null,null,null,null,null,0,0,0,null,null,null,null,null,null,null,null,null,null,null,null,"","","","","","","","","","","",""]
[8,null,null,null,null,null,null,null,null,null,null,null,null,null,null,null,null,null,null,null,null,null,null,null,null,null,null,null,null,null,null,null,null,null,null,null,null,null,null,null,null,null,null,null,null,null,null,null,null,null,null,null,null,null,"","","","","","","","","","","",""]
[9,null,null,null,null,null,null,null,null,null,null,null,null,null,null,null,null,null,null,null,null,null,null,null,null,null,null,null,null,null,null,null,null,null,null,null,null,null,null,null,null,null,null,null,null,null,null,null,null,null,null,{"$f":"IF(C14=\"\",\"\",CEILING(C14,0.5))","v":""},"","","","","","","","","","","","","",""]
[10,null,null,null,null,null,null,null,null,null,null,null,null,null,null,null,null,null,null,null,null,null,null,null,null,null,null,null,null,null,null,null,null,null,null,null,null,null,null,null,null,null,null,null,null,null,null,null,null,null,null,"","","","","","","","","","","","","","",""]
[11,null,null,null,null,null,null,null,null,null,null,null,null,null,null,null,null,null,null,null,null,null,null,null,null,null,null,null,null,null,null,null,null,null,null,null,null,null,null,null,null,null,null,null,null,null,null,null,null,null,null,"","","","","","","","","","","","","","",""]
[12,null,null,null,null,null,null,null,null,null,null,null,null,null,null,null,null,null,null,null,null,null,null,null,null,null,null,null,null,null,null,null,null,null,null,null,null,null,null,null,null,null,null,null,null,null,null,null,null,null,null,"","","","","","","","","","","","","","",""]
[13,null,null,null,null,null,null,null,null,null,null,null,null,null,null,null,null,null,null,null,null,null,null,null,null,null,null,null,null,null,null,null,null,null,null,null,null,null,null,null,null,null,null,null,null,null,null,null,null,null,null,"","","","","","","","","","","","","","",""]
[14,null,null,null,null,null,null,null,null,null,null,null,null,null,null,null,null,null,null,null,null,null,null,null,null,null,null,null,null,null,null,null,null,null,null,null,null,null,null,null,null,null,null,null,null,null,null,null,null,null,null,"","","","","","","","","","","","","","",""]
[15,null,null,null,null,null,null,null,null,null,null,null,null,null,null,null,null,null,null,null,null,null,null,null,null,null,null,null,null,null,null,null,null,null,null,null,null,null,null,null,null,null,null,null,null,null,null,null,null,null,null,"","","","","","","","","","","","","","",""]
["CYCLE TIME",null,{"$f":"IF(SUM(C6:C20)=0,\"\",SUM(C6:C20))","v":""},{"$f":"IF(SUM(D6:D20)=0,\"\",SUM(D6:D20))","v":""},"","","","","","","","","","","","","",{"$f":"SUM(R6:R20)","v":0},{"$f":"SUM(S6:S20)","v":0},null,null,null,null,null,null,null,null,null,null,null,null,null,null,null,null,null,null,null,null,{"$f":"ROUND(C21,0)","v":{"$error":"#VALUE!"}},{"$error":"#VALUE!"},{"$error":"#VALUE!"},{"$error":"#VALUE!"},{"$error":"#VALUE!"},{"$error":"#VALUE!"},{"$error":"#VALUE!"},{"$error":"#VALUE!"},{"$error":"#VALUE!"},{"$error":"#VALUE!"},{"$error":"#VALUE!"},{"$error":"#VALUE!"},{"$error":"#VALUE!"},{"$error":"#VALUE!"},{"$error":"#VALUE!"}]
[]
[]
["Irregular Work (example : Take new polybox, etc)",null,null,null,null,null,null,null,null,null,null,null,null,null,null,null,null,null,null,{"$f":"COUNTA(B:B)","v":3}]
["NO","Irregular Work","Time",null,null,null,null,null,null,null,null,null,null,null,null,null,null,"Average Time","Piece","Time\n(sec/pc)",null,null,null,null,null,null,null,null,null,null,null,null,null,null,null,null,null,null,null,{"$f":"ROUND(C25,0)","v":{"$error":"#VALUE!"}}]
[null,null,1,2,3,4,5,6,7,8,9,10,11,12,13,14,15,null,null,null,null,null,null,null,null,null,null,null,null,null,null,null,null,null,null,null,null,null,null,{"$f":"ROUND(C26,0)","v":1},{"$f":"ROUND(D26,0)","v":2},3,4,5,6,7,8,9,10,11,12,13,14,15]
[1,null,null,null,null,null,null,null,null,null,null,null,null,null,null,null,null,null,null,null,null,null,null,null,null,null,null,null,null,null,null,null,null,null,null,null,null,null,null,{"$f":"ROUND(C27,0)","v":0},{"$f":"ROUND(D27,0)","v":0}]
[{"$f":"+A27+1","v":2}]
[{"$f":"+A28+1","v":3}]
[{"$f":"+A29+1","v":4}]
[{"$f":"+A30+1","v":5}]
[6]
[7]
[8]
[9]
[10]
[null,null,null,null,null,null,null,null,null,null,null,null,null,null,null,null,null,null,null,{"$f":"SUM(T27:T36)","v":0}]

{"sheet":"4","index":8,"n_rows":54,"n_cols":228,"rows_kept":54,"cut":false,"hidden":true,"merged":[[1,207,1,226],[1,7,4,126],[1,187,1,206],[5,0,6,0],[5,1,6,3],[5,4,6,4],[5,5,6,5],[5,6,6,6],[5,7,5,246],[2,227,4,246],[7,0,9,0],[7,1,9,3],[7,4,9,4],[7,5,9,5],[7,6,8,6],[9,6,11,6],[10,0,12,0],[10,1,12,3],[10,4,12,4],[10,5,12,5],[12,6,14,6],[13,0,15,0],[13,1,15,3],[13,4,15,4],[13,5,15,5],[15,6,17,6],[16,0,18,0],[16,1,18,3],[16,4,18,4],[16,5,18,5],[18,6,20,6],[19,0,21,0],[19,1,21,3],[19,4,21,4],[33,6,35,6],[34,0,36,0],[34,1,36,3],[34,4,36,4],[34,5,36,5],[19,5,21,5],[21,6,23,6],[22,0,24,0],[22,1,24,3],[22,4,24,4],[22,5,24,5],[24,6,26,6],[25,0,27,0],[25,1,27,3],[25,4,27,4],[25,5,27,5],[27,6,29,6],[28,0,30,0],[28,1,30,3],[28,4,30,4],[28,5,30,5],[43,5,45,5],[45,6,47,6],[46,0,48,0],[46,1,48,3],[46,4,48,4],[46,5,48,5],[30,6,32,6],[49,0,51,0],[49,1,51,3],[49,4,51,4],[49,5,51,5],[37,0,39,0],[37,1,39,3],[37,4,39,4],[37,5,39,5],[39,6,41,6],[40,0,42,0],[40,1,42,3],[40,4,42,4],[40,5,42,5],[31,0,33,0],[31,1,33,3],[31,4,33,4],[31,5,33,5],[54,1,54,246],[48,6,50,6],[52,6,53,6],[42,6,44,6],[36,6,38,6],[2,157,2,186],[3,127,3,156],[3,157,3,186],[4,127,4,156],[4,157,4,186],[1,0,2,1],[1,2,2,6],[3,0,4,1],[3,2,4,6],[1,127,1,156],[52,0,53,3],[52,4,53,4],[43,0,45,0],[43,1,45,3],[43,4,45,4],[2,127,2,156],[1,227,1,246],[2,187,4,206],[2,207,4,226]]}
[2,null,null,null,null,null,null,0,1]
["PART NO",null,null,null,null,null,null,"STANDARDIZED WORK COMBINATION TABLE SHEET",null,null,null,null,null,null,null,null,null,null,null,null,null,null,null,null,null,null,null,null,null,null,null,null,null,null,null,null,null,null,null,null,null,null,null,null,null,null,null,null,null,null,null,null,null,null,null,null,null,null,null,null,null,null,null,null,null,null,null,null,null,null,null,null,null,null,null,null,null,null,null,null,null,null,null,null,null,null,null,null,null,null,null,null,null,null,null,null,null,null,null,null,null,null,null,null,null,null,null,null,null,null,null,null,null,null,null,null,null,null,null,null,null,null,null,null,null,null,null,"DATE TAKEN",null,null,null,null,null,null,null,null,null,null,null,null,null,null,null,null,null,null,null,null,null,null,null,null,null,null,null,null,null,null,null,null,null,null,null,null,null,null,null,null,null,null,null,null,null,null,null,null,null,null,null,null,null,null,null,null,null,null,null,"APPROVED",null,null,null,null,null,null,null,null,null,null,null,null,null,null,null,null,null,null,null,"CHECKED",null,null,null,null,null,null,null,null,null,null,null,null,null,null,null,null,null,null,null,"PREPARED"]
[null,null,null,null,null,null,null,null,null,null,null,null,null,null,null,null,null,null,null,null,null,null,null,null,null,null,null,null,null,null,null,null,null,null,null,null,null,null,null,null,null,null,null,null,null,null,null,null,null,null,null,null,null,null,null,null,null,null,null,null,null,null,null,null,null,null,null,null,null,null,null,null,null,null,null,null,null,null,null,null,null,null,null,null,null,null,null,null,null,null,null,null,null,null,null,null,null,null,null,null,null,null,null,null,null,null,null,null,null,null,null,null,null,null,null,null,null,null,null,null,null,null,null,null,null,null,null,"PCS / DAY"]
["PROCESS",null,null,null,null,null,null,null,null,null,null,null,null,null,null,null,null,null,null,null,null,null,null,null,null,null,null,null,null,null,null,null,null,null,null,null,null,null,null,null,null,null,null,null,null,null,null,null,null,null,null,null,null,null,null,null,null,null,null,null,null,null,null,null,null,null,null,null,null,null,null,null,null,null,null,null,null,null,null,null,null,null,null,null,null,null,null,null,null,null,null,null,null,null,null,null,null,null,null,null,null,null,null,null,null,null,null,null,null,null,null,null,null,null,null,null,null,null,null,null,null,null,null,null,null,null,null,"LINE TAKT TIME"]
[null,null,null,null,null,null,null,null,null,null,null,null,null,null,null,null,null,null,null,null,null,null,null,null,null,null,null,null,null,null,null,null,null,null,null,null,null,null,null,null,null,null,null,null,null,null,null,null,null,null,null,null,null,null,null,null,null,null,null,null,null,null,null,null,null,null,null,null,null,null,null,null,null,null,null,null,null,null,null,null,null,null,null,null,null,null,null,null,null,null,null,null,null,null,null,null,null,null,null,null,null,null,null,null,null,null,null,null,null,null,null,null,null,null,null,null,null,null,null,null,null,null,null,null,null,null,null,"SECTION / LINE"]
["NO","WORK NAME",null,null,"MAN","AUTO","WALK"]
[]
[]
[]
[]
[]
[]
[]
[]
[]
[]
[]
[]
[]
[]
[]
[]
[]
[]
[]
[]
[]
[]
[]
[]
[]
[]
[]
[]
[]
[]
[]
[]
[]
[]
[]
[]
[]
[]
[]
[]
[]
[]
[]
[]
[]
[]
["TOTAL",null,null,null,{"$f":"SUM(E8:E52)","v":0},"Wait",{"$f":"SUM(G8:G52)","v":0},"akhir"]
[null,null,null,null,null,{"$f":"H1","v":0}]

{"sheet":"TSS5","index":9,"n_rows":37,"n_cols":66,"rows_kept":37,"cut":false,"hidden":true,"merged":[[3,20,4,20],[3,21,3,25],[3,26,4,26],[20,0,20,1],[1,23,1,25],[2,14,2,16],[2,23,2,25],[3,0,4,0],[3,2,3,16],[3,17,4,17],[3,18,4,18],[3,19,4,19],[1,0,2,1],[1,2,2,5],[1,6,2,13],[1,14,1,16],[24,19,25,19],[24,0,25,0],[24,1,25,1],[24,2,24,16],[24,17,25,17],[24,18,25,18]]}
[null,null,{"$f":"COUNTA(B:B)-1","v":2},{"$f":"COUNTA(C6:Q6)","v":0}]
["PROCESS NAME",null,null,null,null,null,"TIME STUDY SHEET",null,null,null,null,null,null,null,"PART NO",null,null,null,"SECTION LINE",null,null,null,null,"DATE"]
[null,null,null,null,null,null,null,null,null,null,null,null,null,null,"TYPE",null,null,null,"TAKT TIME",null,null,null,null,"MEASURED BY"]
["NO","WORK NAME\nFor walk activity, please write :","Manual",null,null,null,null,null,null,null,null,null,null,null,null,null,null,"OPERATION TIME","ADJUSTMENT\n(Will be used for SWCT Line)","OPERATION","MACHINE NO","MACHINE TIME",null,null,null,null,"AUTO \n(MACHINE TIME)",null,null,null,{"$f":"SUM(AE6:AE105)","v":11.07},{"$f":"SUM(AF6:AF105)","v":0},{"$f":"SUM(AG6:AG105)","v":0}]
[null,"Walk; walk; walking; return; Return",1,2,3,4,5,6,7,8,9,10,11,12,13,14,15,null,null,null,null,1,2,3,4,5]
[1,null,null,null,null,null,null,null,null,null,null,null,null,null,null,null,null,null,null,null,null,null,null,null,null,null,null,null,null,null,1.87,null,null,null,null,null,null,null,null,{"$f":"ROUND(C6,0)","v":0},0,0,null,null,null,null,null,null,null,null,null,null,null,null,{"$f":"IF(F6=\"\",\"\",CEILING(F6,0.5))","v":""},"","","","","","","","","","",""]
[{"$f":"+A6+1","v":2},null,null,null,null,null,null,null,null,null,null,null,null,null,null,null,null,null,null,null,null,null,null,null,null,null,null,null,null,null,1.7299999999999995,null,null,null,null,null,null,null,null,0,0,0,null,null,null,null,null,null,null,null,null,null,null,null,"","","","","","","","","","","",""]
[3,null,null,null,null,null,null,null,null,null,null,null,null,null,null,null,null,null,null,null,null,null,null,null,null,null,null,null,null,null,1.5699999999999998,null,null,null,null,null,null,null,null,0,0,0,null,null,null,null,null,null,null,null,null,null,null,null,"","","","","","","","","","","",""]
[4,null,null,null,null,null,null,null,null,null,null,null,null,null,null,null,null,null,null,null,null,null,null,null,null,null,null,null,null,null,1.6600000000000004,null,null,null,null,null,null,null,null,0,0,0,null,null,null,null,null,null,null,null,null,null,null,null,"","","","","","","","","","","",""]
[5,null,null,null,null,null,null,null,null,null,null,null,null,null,null,null,null,null,null,null,null,null,null,null,null,null,null,null,null,null,1.42,null,null,null,null,null,null,null,null,0,0,0,null,null,null,null,null,null,null,null,null,null,null,null,"","","","","","","","","","","",""]
[6,null,null,null,null,null,null,null,null,null,null,null,null,null,null,null,null,null,null,null,null,null,null,null,null,null,null,null,null,null,1.45,null,null,null,null,null,null,null,null,0,0,0,null,null,null,null,null,null,null,null,null,null,null,null,"","","","","","","","","","","",""]
[7,null,null,null,null,null,null,null,null,null,null,null,null,null,null,null,null,null,null,null,null,null,null,null,null,null,null,null,null,null,1.37,null,null,null,null,null,null,null,null,0,0,0,null,null,null,null,null,null,null,null,null,null,null,null,"","","","","","","","","","","",""]
[8,null,null,null,null,null,null,null,null,null,null,null,null,null,null,null,null,null,null,null,null,null,null,null,null,null,null,null,null,null,null,null,null,null,null,null,null,null,null,null,null,null,null,null,null,null,null,null,null,null,null,null,null,null,"","","","","","","","","","","",""]
[9,null,null,null,null,null,null,null,null,null,null,null,null,null,null,null,null,null,null,null,null,null,null,null,null,null,null,null,null,null,null,null,null,null,null,null,null,null,null,null,null,null,null,null,null,null,null,null,null,null,null,{"$f":"IF(C14=\"\",\"\",CEILING(C14,0.5))","v":""},"","","","","","","","","","","","","",""]
[10,null,null,null,null,null,null,null,null,null,null,null,null,null,null,null,null,null,null,null,null,null,null,null,null,null,null,null,null,null,null,null,null,null,null,null,null,null,null,null,null,null,null,null,null,null,null,null,null,null,null,"","","","","","","","","","","","","","",""]
[11,null,null,null,null,null,null,null,null,null,null,null,null,null,null,null,null,null,null,null,null,null,null,null,null,null,null,null,null,null,null,null,null,null,null,null,null,null,null,null,null,null,null,null,null,null,null,null,null,null,null,"","","","","","","","","","","","","","",""]
[12,null,null,null,null,null,null,null,null,null,null,null,null,null,null,null,null,null,null,null,null,null,null,null,null,null,null,null,null,null,null,null,null,null,null,null,null,null,null,null,null,null,null,null,null,null,null,null,null,null,null,"","","","","","","","","","","","","","",""]
[13,null,null,null,null,null,null,null,null,null,null,null,null,null,null,null,null,null,null,null,null,null,null,null,null,null,null,null,null,null,null,null,null,null,null,null,null,null,null,null,null,null,null,null,null,null,null,null,null,null,null,"","","","","","","","","","","","","","",""]
[14,null,null,null,null,null,null,null,null,null,null,null,null,null,null,null,null,null,null,null,null,null,null,null,null,null,null,null,null,null,null,null,null,null,null,null,null,null,null,null,null,null,null,null,null,null,null,null,null,null,null,"","","","","","","","","","","","","","",""]
[15,null,null,null,null,null,null,null,null,null,null,null,null,null,null,null,null,null,null,null,null,null,null,null,null,null,null,null,null,null,null,null,null,null,null,null,null,null,null,null,null,null,null,null,null,null,null,null,null,null,null,"","","","","","","","","","","","","","",""]
["CYCLE TIME",null,{"$f":"IF(SUM(C6:C20)=0,\"\",SUM(C6:C20))","v":""},{"$f":"IF(SUM(D6:D20)=0,\"\",SUM(D6:D20))","v":""},"","","","","","","","","","","","","",{"$f":"SUM(R6:R20)","v":0},{"$f":"SUM(S6:S20)","v":0},null,null,null,null,null,null,null,null,null,null,null,null,null,null,null,null,null,null,null,null,{"$f":"ROUND(C21,0)","v":{"$error":"#VALUE!"}},{"$error":"#VALUE!"},{"$error":"#VALUE!"},{"$error":"#VALUE!"},{"$error":"#VALUE!"},{"$error":"#VALUE!"},{"$error":"#VALUE!"},{"$error":"#VALUE!"},{"$error":"#VALUE!"},{"$error":"#VALUE!"},{"$error":"#VALUE!"},{"$error":"#VALUE!"},{"$error":"#VALUE!"},{"$error":"#VALUE!"},{"$error":"#VALUE!"}]
[]
[]
["Irregular Work (example : Take new polybox, etc)",null,null,null,null,null,null,null,null,null,null,null,null,null,null,null,null,null,null,{"$f":"COUNTA(B:B)","v":3}]
["NO","Irregular Work","Time",null,null,null,null,null,null,null,null,null,null,null,null,null,null,"Average Time","Piece","Time\n(sec/pc)",null,null,null,null,null,null,null,null,null,null,null,null,null,null,null,null,null,null,null,{"$f":"ROUND(C25,0)","v":{"$error":"#VALUE!"}}]
[null,null,1,2,3,4,5,6,7,8,9,10,11,12,13,14,15,null,null,null,null,null,null,null,null,null,null,null,null,null,null,null,null,null,null,null,null,null,null,{"$f":"ROUND(C26,0)","v":1},{"$f":"ROUND(D26,0)","v":2},3,4,5,6,7,8,9,10,11,12,13,14,15]
[1,null,null,null,null,null,null,null,null,null,null,null,null,null,null,null,null,null,null,null,null,null,null,null,null,null,null,null,null,null,null,null,null,null,null,null,null,null,null,{"$f":"ROUND(C27,0)","v":0},{"$f":"ROUND(D27,0)","v":0}]
[{"$f":"+A27+1","v":2}]
[{"$f":"+A28+1","v":3}]
[{"$f":"+A29+1","v":4}]
[{"$f":"+A30+1","v":5}]
[6]
[7]
[8]
[9]
[10]
[null,null,null,null,null,null,null,null,null,null,null,null,null,null,null,null,null,null,null,{"$f":"SUM(T27:T36)","v":0}]

{"sheet":"5","index":10,"n_rows":54,"n_cols":228,"rows_kept":54,"cut":false,"hidden":true,"merged":[[5,0,6,0],[5,1,6,3],[5,4,6,4],[5,5,6,5],[5,6,6,6],[5,7,5,246],[7,0,9,0],[7,1,9,3],[7,4,9,4],[7,5,9,5],[7,6,8,6],[9,6,11,6],[10,0,12,0],[10,1,12,3],[10,4,12,4],[10,5,12,5],[12,6,14,6],[13,0,15,0],[13,1,15,3],[13,4,15,4],[13,5,15,5],[15,6,17,6],[16,0,18,0],[16,1,18,3],[16,4,18,4],[16,5,18,5],[18,6,20,6],[19,0,21,0],[19,1,21,3],[19,4,21,4],[19,5,21,5],[21,6,23,6],[22,0,24,0],[22,1,24,3],[22,4,24,4],[22,5,24,5],[24,6,26,6],[25,0,27,0],[25,1,27,3],[25,4,27,4],[25,5,27,5],[27,6,29,6],[28,0,30,0],[28,1,30,3],[28,4,30,4],[28,5,30,5],[30,6,32,6],[31,0,33,0],[31,1,33,3],[31,4,33,4],[31,5,33,5],[33,6,35,6],[34,0,36,0],[34,1,36,3],[34,4,36,4],[34,5,36,5],[36,6,38,6],[37,0,39,0],[37,1,39,3],[37,4,39,4],[37,5,39,5],[39,6,41,6],[40,0,42,0],[40,1,42,3],[40,4,42,4],[40,5,42,5],[42,6,44,6],[43,0,45,0],[43,1,45,3],[43,4,45,4],[43,5,45,5],[45,6,47,6],[46,0,48,0],[46,1,48,3],[46,4,48,4],[46,5,48,5],[54,1,54,246],[48,6,50,6],[52,6,53,6],[49,0,51,0],[49,1,51,3],[49,4,51,4],[49,5,51,5],[52,0,53,3],[52,4,53,4],[1,227,1,246],[2,187,4,206],[2,157,2,186],[3,157,3,186],[2,207,4,226],[2,227,4,246],[1,207,1,226],[1,187,1,206],[4,157,4,186],[1,0,2,1],[1,2,2,6],[3,0,4,1],[3,2,4,6],[1,127,1,156],[2,127,2,156],[3,127,3,156],[4,127,4,156],[1,7,4,126]]}
[2,null,null,null,null,null,null,0,0.5]
["PART NO",null,null,null,null,null,null,"STANDARDIZED WORK COMBINATION TABLE SHEET",null,null,null,null,null,null,null,null,null,null,null,null,null,null,null,null,null,null,null,null,null,null,null,null,null,null,null,null,null,null,null,null,null,null,null,null,null,null,null,null,null,null,null,null,null,null,null,null,null,null,null,null,null,null,null,null,null,null,null,null,null,null,null,null,null,null,null,null,null,null,null,null,null,null,null,null,null,null,null,null,null,null,null,null,null,null,null,null,null,null,null,null,null,null,null,null,null,null,null,null,null,null,null,null,null,null,null,null,null,null,null,null,null,null,null,null,null,null,null,"DATE TAKEN",null,null,null,null,null,null,null,null,null,null,null,null,null,null,null,null,null,null,null,null,null,null,null,null,null,null,null,null,null,null,null,null,null,null,null,null,null,null,null,null,null,null,null,null,null,null,null,null,null,null,null,null,null,null,null,null,null,null,null,"APPROVED",null,null,null,null,null,null,null,null,null,null,null,null,null,null,null,null,null,null,null,"CHECKED",null,null,null,null,null,null,null,null,null,null,null,null,null,null,null,null,null,null,null,"PREPARED"]
[null,null,null,null,null,null,null,null,null,null,null,null,null,null,null,null,null,null,null,null,null,null,null,null,null,null,null,null,null,null,null,null,null,null,null,null,null,null,null,null,null,null,null,null,null,null,null,null,null,null,null,null,null,null,null,null,null,null,null,null,null,null,null,null,null,null,null,null,null,null,null,null,null,null,null,null,null,null,null,null,null,null,null,null,null,null,null,null,null,null,null,null,null,null,null,null,null,null,null,null,null,null,null,null,null,null,null,null,null,null,null,null,null,null,null,null,null,null,null,null,null,null,null,null,null,null,null,"PCS / DAY"]
["PROCESS",null,null,null,null,null,null,null,null,null,null,null,null,null,null,null,null,null,null,null,null,null,null,null,null,null,null,null,null,null,null,null,null,null,null,null,null,null,null,null,null,null,null,null,null,null,null,null,null,null,null,null,null,null,null,null,null,null,null,null,null,null,null,null,null,null,null,null,null,null,null,null,null,null,null,null,null,null,null,null,null,null,null,null,null,null,null,null,null,null,null,null,null,null,null,null,null,null,null,null,null,null,null,null,null,null,null,null,null,null,null,null,null,null,null,null,null,null,null,null,null,null,null,null,null,null,null,"LINE TAKT TIME"]
[null,null,null,null,null,null,null,null,null,null,null,null,null,null,null,null,null,null,null,null,null,null,null,null,null,null,null,null,null,null,null,null,null,null,null,null,null,null,null,null,null,null,null,null,null,null,null,null,null,null,null,null,null,null,null,null,null,null,null,null,null,null,null,null,null,null,null,null,null,null,null,null,null,null,null,null,null,null,null,null,null,null,null,null,null,null,null,null,null,null,null,null,null,null,null,null,null,null,null,null,null,null,null,null,null,null,null,null,null,null,null,null,null,null,null,null,null,null,null,null,null,null,null,null,null,null,null,"SECTION / LINE"]
["NO","WORK NAME",null,null,"MAN","AUTO","WALK"]
[]
[]
[]
[]
[]
[]
[]
[]
[]
[]
[]
[]
[]
[]
[]
[]
[]
[]
[]
[]
[]
[]
[]
[]
[]
[]
[]
[]
[]
[]
[]
[]
[]
[]
[]
[]
[]
[]
[]
[]
[]
[]
[]
[]
[]
[]
["TOTAL",null,null,null,{"$f":"SUM(E8:E52)","v":0},"Wait",{"$f":"SUM(G8:G52)","v":0},"akhir"]
[null,null,null,null,null,{"$f":"H1","v":0}]

{"sheet":"PCS","index":11,"n_rows":26,"n_cols":32,"rows_kept":26,"cut":false,"hidden":false,"merged":[[25,23,26,23],[25,24,26,24],[25,17,26,17],[25,18,26,18],[25,19,26,19],[25,20,26,20],[25,21,26,21],[25,22,26,22],[25,1,26,9],[25,10,26,11],[25,12,26,13],[25,14,26,14],[25,15,26,15],[25,16,26,16],[23,25,23,33],[24,2,24,9],[24,10,24,11],[24,12,24,13],[24,14,24,15],[24,16,24,17],[24,22,24,24],[24,25,24,33],[23,2,23,9],[23,10,23,11],[23,12,23,13],[23,14,23,15],[23,16,23,17],[23,22,23,24],[21,25,21,33],[22,2,22,9],[22,10,22,11],[22,12,22,13],[22,14,22,15],[22,16,22,17],[22,22,22,24],[22,25,22,33],[21,2,21,9],[21,10,21,11],[21,12,21,13],[21,14,21,15],[21,16,21,17],[21,22,21,24],[19,25,19,33],[20,2,20,9],[20,10,20,11],[20,12,20,13],[20,14,20,15],[20,16,20,17],[20,22,20,24],[20,25,20,33],[19,2,19,9],[19,10,19,11],[19,12,19,13],[19,14,19,15],[19,16,19,17],[19,22,19,24],[17,25,17,33],[18,2,18,9],[18,10,18,11],[18,12,18,13],[18,14,18,15],[18,16,18,17],[18,22,18,24],[18,25,18,33],[17,2,17,9],[17,10,17,11],[17,12,17,13],[17,14,17,15],[17,16,17,17],[17,22,17,24],[15,25,15,33],[16,2,16,9],[16,10,16,11],[16,12,16,13],[16,14,16,15],[16,16,16,17],[16,22,16,24],[16,25,16,33],[14,22,14,24],[14,25,14,33],[15,2,15,9],[15,10,15,11],[15,12,15,13],[15,14,15,15],[15,16,15,17],[15,18,15,19],[15,20,15,21],[15,22,15,24],[13,20,13,21],[13,22,13,24],[13,25,13,33],[14,2,14,9],[14,10,14,11],[14,12,14,13],[14,14,14,15],[14,16,14,17],[14,18,14,19],[14,20,14,21],[13,2,13,9],[13,10,13,11],[13,12,13,13],[13,14,13,15],[13,16,13,17],[13,18,13,19],[12,2,12,9],[12,10,12,11],[12,12,12,13],[12,14,12,15],[12,16,12,17],[12,18,12,19],[12,20,12,21],[12,22,12,24],[12,25,12,33],[11,2,11,9],[11,10,11,11],[11,12,11,13],[11,14,11,15],[11,16,11,17],[11,18,11,19],[11,20,11,21],[11,22,11,24],[11,25,11,33],[9,20,9,21],[9,22,9,24],[9,25,9,33],[10,2,10,9],[10,10,10,11],[10,12,10,13],[10,14,10,15],[10,16,10,17],[10,18,10,19],[10,20,10,21],[9,2,9,9],[9,10,9,11],[9,12,9,13],[9,14,9,15],[9,16,9,17],[9,18,9,19],[10,22,10,24],[10,25,10,33],[7,25,7,33],[8,2,8,9],[8,10,8,11],[8,12,8,13],[8,14,8,15],[8,16,8,17],[8,18,8,19],[8,20,8,21],[8,22,8,24],[8,25,8,33],[7,22,7,24],[7,2,7,9],[7,10,7,11],[7,12,7,13],[7,14,7,15],[7,16,7,17],[7,18,7,19],[7,20,7,21],[6,12,6,13],[6,14,6,15],[6,16,6,17],[6,18,6,19],[6,20,6,21],[5,22,6,24],[4,17,4,19],[4,25,4,27],[4,28,4,30],[4,31,4,33],[5,1,6,1],[5,2,6,9],[5,10,6,11],[5,12,5,17],[5,18,5,21],[5,25,6,28],[1,25,1,27],[1,28,1,30],[1,31,1,33],[2,6,3,7],[2,8,3,9],[2,17,2,19],[3,17,3,19],[1,1,2,2],[1,3,2,5],[1,8,1,9],[1,10,4,16],[1,17,1,19],[3,1,4,2],[3,3,4,5],[4,6,4,7],[4,8,4,9],[1,6,1,7]]}
[{"$f":"COUNTA(B:B)-3","v":0}]
[null,"TYPE",null,null,null,null,"SECTION",null,"NAME",null,"PRODUCTION CAPACITY SHEET",null,null,null,null,null,null,"PART NO.",null,null,": ",null,null,null,null,"APPROVED BY",null,null,"CHECKED BY",null,null,"CREATED BY"]
[null,null,null,null,null,null,null,null,null,null,null,null,null,null,null,null,null,"PART NAME",null,null,":"]
[null,"NO. OF UNITS",null,null,null,null,null,null,null,null,null,null,null,null,null,null,null,"DOC. NO.",null,null,": "]
[null,null,null,null,null,null,"PAGE",null,null,null,null,null,null,null,null,null,null,"DATE",null,null,":"]
[null,"NO","OPERATION",null,null,null,null,null,null,null,"MACHINE NO",null,"BASIC TIME",null,null,null,null,null,"TOOLS",null,null,null,{"$f":"\"PROCESSING CAPACITY\n(\"&MIN(W8:Y25)&\")\"","v":"PROCESSING CAPACITY\n(0)"}]
[null,null,null,null,null,null,null,null,null,null,null,null,"MANUAL",null,"AUTO",null,"TIME TO COMPLETE",null,"NO CHANGED",null,"TIME TAKEN"]
[]
[]
[]
[]
[]
[]
[]
[]
[]
[]
[]
[]
[]
[]
[]
[]
[]
[]
[null,null,null,null,null,null,null,null,null,null,"TOTAL",null,{"$f":"SUM(M8:N25)","v":0}]

{"sheet":"Stopwatch","index":12,"n_rows":111,"n_cols":8,"rows_kept":111,"cut":false,"hidden":true,"merged":[]}
[null,null,null,"00:09,453","Trigger stop watch",null,null,{"$f":"COUNTA(D:D)-4","v":15}]
[]
["sekarang",{"$f":"NOW()","v":42548.604998148148}]
["Start","Stop","Selisih"]
[41991.927045370372,{"$f":"NOW()","v":42548.604998148148},{"$f":"B5-A5","v":556.67795277777623},"untuk total",null,"00:00:00"]
[41991.927154745368,{"$f":"NOW()","v":42548.604998148148},{"$f":"B6-A6","v":556.67784340278013},"untuk tiap lap"]
[]
[]
[]
[null,null,null,"Clear Time","Time"]
[null,null,null,"00:09,45",{"$f":"IF(D11=\"\",\"\",D11*3600*24)","v":{"$error":"#VALUE!"}}]
[null,null,null,"00:02,28",{"$error":"#VALUE!"}]
[null,null,null,"00:02,05",{"$error":"#VALUE!"}]
[null,null,null,"00:02,06",{"$error":"#VALUE!"}]
[null,null,null,"00:01,97",{"$error":"#VALUE!"}]
[null,null,null,"00:01,61",{"$error":"#VALUE!"}]
[null,null,null,"00:01,84",{"$error":"#VALUE!"}]
[null,null,null,"00:01,92",{"$error":"#VALUE!"}]
[null,null,null,"00:01,82",{"$error":"#VALUE!"}]
[null,null,null,"00:01,67",{"$error":"#VALUE!"}]
[null,null,null,"00:01,68",{"$error":"#VALUE!"}]
[null,null,null,"00:01,86",{"$error":"#VALUE!"}]
[null,null,null,"00:01,75",{"$error":"#VALUE!"}]
[null,null,null,"00:01,65",{"$error":"#VALUE!"}]
[null,null,null,"00:01,41",{"$error":"#VALUE!"}]
[null,null,null,null,""]
[null,null,null,null,""]
[null,null,null,null,""]
[null,null,null,null,""]
[null,null,null,null,""]
[null,null,null,null,""]
[null,null,null,null,""]
[null,null,null,null,""]
[null,null,null,null,""]
[null,null,null,null,""]
[null,null,null,null,""]
[null,null,null,null,""]
[null,null,null,null,""]
[null,null,null,null,""]
[null,null,null,null,""]
[null,null,null,null,""]
[null,null,null,null,""]
[null,null,null,null,""]
[null,null,null,null,""]
[null,null,null,null,""]
[null,null,null,null,""]
[null,null,null,null,""]
[null,null,null,null,""]
[null,null,null,null,""]
[null,null,null,null,""]
[null,null,null,null,""]
[null,null,null,null,""]
[null,null,null,null,""]
[null,null,null,null,""]
[null,null,null,null,""]
[null,null,null,null,""]
[null,null,null,null,""]
[null,null,null,null,""]
[null,null,null,null,""]
[null,null,null,null,""]
[null,null,null,null,""]
[null,null,null,null,""]
[null,null,null,null,""]
[null,null,null,null,""]
[null,null,null,null,""]
[null,null,null,null,""]
[null,null,null,null,""]
[null,null,null,null,""]
[null,null,null,null,""]
[null,null,null,null,""]
[null,null,null,null,""]
[null,null,null,null,""]
[null,null,null,null,""]
[null,null,null,null,""]
[null,null,null,null,""]
[null,null,null,null,{"$f":"IF(D76=\"\",\"\",D76*3600*24)","v":""}]
[null,null,null,null,""]
[null,null,null,null,""]
[null,null,null,null,""]
[null,null,null,null,""]
[null,null,null,null,""]
[null,null,null,null,""]
[null,null,null,null,""]
[null,null,null,null,""]
[null,null,null,null,""]
[null,null,null,null,""]
[null,null,null,null,""]
[null,null,null,null,""]
[null,null,null,null,""]
[null,null,null,null,""]
[null,null,null,null,""]
[null,null,null,null,""]
[null,null,null,null,""]
[null,null,null,null,""]
[null,null,null,null,""]
[null,null,null,null,""]
[null,null,null,null,""]
[null,null,null,null,""]
[null,null,null,null,""]
[null,null,null,null,""]
[null,null,null,null,""]
[null,null,null,null,""]
[null,null,null,null,""]
[null,null,null,null,""]
[null,null,null,null,""]
[null,null,null,null,""]
[null,null,null,null,""]
[null,null,null,null,""]
[null,null,null,null,""]
[null,null,null,null,""]
[null,null,null,null,""]

{"sheet":"Yamazumi1","index":13,"n_rows":55,"n_cols":8,"rows_kept":55,"cut":false,"hidden":true,"merged":[]}
[]
[]
[]
[]
[]
[]
[]
[]
[]
[]
[]
[]
[]
[]
[]
[]
[]
[]
[]
[]
[]
[]
[]
[]
[]
[]
[]
[]
[]
[]
[]
[]
[]
[]
[]
[]
[]
[]
[]
[]
[]
[null,"Data For Yamazumi Chart"]
[null,"Please Fill on Yellow Cell Only"]
[null,"Qty / Process (pcs/Cycle)",null,1,null,null,"→","Please fill Qty/process (piece)"]
[null,"CT",null,{"$f":"('1'!E53+'1'!F54+'1'!G53)/D44","v":27},{"$f":"D45","v":27},null,"→","Automatic value is refer to Time Study Sheet & SWCT Form, don’t change this value"]
[null,"Irregular",null,{"$f":"'TSS1'!T38","v":0},null,null,"→","Automatic value is refer to Time Study Sheet & SWCT Form, don’t change this value"]
[null,"Baratsuki",null,null,{"$f":"(E50-E51)/D44","v":0},null,"→","Automatic value is refer to Time Study Sheet & SWCT Form, don’t change this value"]
[null,"Empty",null,null,{"$f":"D46+D49","v":0},null,"→","Automatic value is refer to Time Study Sheet & SWCT Form, don’t change this value"]
[null,"Dandori (sec/pc)",null,0,null,null,"→","Please fill dandori time (type change) for sec/pc"]
[null,"Max",null,null,{"$f":"(MAX('TSS1'!C22:Q22))/D44","v":0},null,"→","Automatic value is refer to Time Study Sheet & SWCT Form, don’t change this value"]
[null,"Min",null,null,{"$f":"(MIN('TSS1'!C22:Q22))/D44","v":0},null,"→","Automatic value is refer to Time Study Sheet & SWCT Form, don’t change this value"]
[null,"Average Baratsuki",null,null,{"$f":"(E47/2)+E45+E48","v":27},null,"→","Automatic value is refer to Time Study Sheet & SWCT Form, don’t change this value"]
[null,"Actual CT",null,0,null,null,"→","Please fill actual CT, you can get from Actual Achievement Report"]
[null,"Takt Time",{"$f":"D54","v":0},0,{"$f":"D54","v":0},{"$f":"E54","v":0},"→","Please fill takt time (sec/pc)"]
[null,null,null,"OP1"]

{"sheet":"Yamazumi2","index":14,"n_rows":55,"n_cols":11,"rows_kept":55,"cut":false,"hidden":true,"merged":[]}
[]
[]
[]
[]
[]
[]
[]
[]
[]
[]
[]
[]
[]
[]
[]
[]
[]
[]
[]
[]
[]
[]
[]
[]
[]
[]
[]
[]
[]
[]
[]
[]
[]
[]
[]
[]
[]
[]
[]
[]
[]
[null,"Data For Yamazumi Chart"]
[null,"Please Fill on Yellow Cell Only"]
[null,"Qty / Process (pcs/Cycle)",null,1,null,null,1,null,null,"→","Please fill Qty/process (piece)"]
[null,"CT",null,{"$f":"('1'!E53+'1'!F54+'1'!G53)/D44","v":27},{"$f":"D45","v":27},null,{"$f":"('2'!E53+'2'!F54+'2'!G53)/G44","v":0},{"$f":"G45","v":0},null,"→","Automatic value is refer to Time Study Sheet & SWCT Form, don’t change this value"]
[null,"Irregular",null,{"$f":"'TSS1'!T38","v":0},null,null,{"$f":"'TSS2'!T37","v":0},null,null,"→","Automatic value is refer to Time Study Sheet & SWCT Form, don’t change this value"]
[null,"Baratsuki",null,null,{"$f":"(E50-E51)/D44","v":0},null,null,{"$f":"(H50-H51)/G44","v":0},null,"→","Automatic value is refer to Time Study Sheet & SWCT Form, don’t change this value"]
[null,"Empty",null,null,{"$f":"D46+D49","v":0},null,null,{"$f":"G46+G49","v":0},null,"→","Automatic value is refer to Time Study Sheet & SWCT Form, don’t change this value"]
[null,"Dandori (sec/pc)",null,0,null,null,0,null,null,"→","Please fill dandori time (type change) for sec/pc"]
[null,"Max",null,null,{"$f":"(MAX('TSS1'!C22:Q22))/D44","v":0},null,null,{"$f":"(MAX('TSS2'!C21:Q21))/G44","v":0},null,"→","Automatic value is refer to Time Study Sheet & SWCT Form, don’t change this value"]
[null,"Min",null,null,{"$f":"(MIN('TSS1'!C22:Q22))/D44","v":0},null,null,{"$f":"(MIN('TSS2'!C21:Q21))/G44","v":0},null,"→","Automatic value is refer to Time Study Sheet & SWCT Form, don’t change this value"]
[null,"Average Baratsuki",null,null,{"$f":"(E47/2)+E45+E48","v":27},null,null,{"$f":"(H47/2)+H45+H48","v":0},null,"→","Automatic value is refer to Time Study Sheet & SWCT Form, don’t change this value"]
[null,"Actual CT",null,0,null,null,0,null,null,"→","Please fill actual CT, you can get from Actual Achievement Report"]
[null,"Takt Time",{"$f":"D54","v":0},0,{"$f":"D54","v":0},{"$f":"E54","v":0},{"$f":"F54","v":0},{"$f":"G54","v":0},{"$f":"H54","v":0},"→","Please fill takt time (sec/pc)"]
[null,null,null,"OP1",null,null,"OP2"]

{"sheet":"Yamazumi3","index":15,"n_rows":55,"n_cols":14,"rows_kept":55,"cut":false,"hidden":true,"merged":[]}
[]
[]
[]
[]
[]
[]
[]
[]
[]
[]
[]
[]
[]
[]
[]
[]
[]
[]
[]
[]
[]
[]
[]
[]
[]
[]
[]
[]
[]
[]
[]
[]
[]
[]
[]
[]
[]
[]
[]
[]
[]
[null,"Data For Yamazumi Chart"]
[null,"Please Fill on Yellow Cell Only"]
[null,"Qty / Process (pcs/Cycle)",null,1,null,null,1,null,null,1,null,null,"→","Please fill Qty/process (piece)"]
[null,"CT",null,{"$f":"('1'!E53+'1'!F54+'1'!G53)/D44","v":27},{"$f":"D45","v":27},null,{"$f":"('2'!E53+'2'!F54+'2'!G53)/G44","v":0},{"$f":"G45","v":0},null,{"$f":"('3'!E53+'3'!F54+'3'!G53)/J44","v":0},{"$f":"J45","v":0},null,"→","Automatic value is refer to Time Study Sheet & SWCT Form, don’t change this value"]
[null,"Irregular",null,{"$f":"'TSS1'!T38","v":0},null,null,{"$f":"'TSS2'!T37","v":0},null,null,{"$f":"'TSS3'!T37","v":0},null,null,"→","Automatic value is refer to Time Study Sheet & SWCT Form, don’t change this value"]
[null,"Baratsuki",null,null,{"$f":"(E50-E51)/D44","v":0},null,null,{"$f":"(H50-H51)/G44","v":0},null,null,{"$f":"(K50-K51)/J44","v":0},null,"→","Automatic value is refer to Time Study Sheet & SWCT Form, don’t change this value"]
[null,"Empty",null,null,{"$f":"D46+D49","v":0},null,null,{"$f":"G46+G49","v":0},null,null,{"$f":"J46+J49","v":0},null,"→","Automatic value is refer to Time Study Sheet & SWCT Form, don’t change this value"]
[null,"Dandori (sec/pc)",null,0,null,null,0,null,null,0,null,null,"→","Please fill dandori time (type change) for sec/pc"]
[null,"Max",null,null,{"$f":"(MAX('TSS1'!C22:Q22))/D44","v":0},null,null,{"$f":"(MAX('TSS2'!C21:Q21))/G44","v":0},null,null,{"$f":"(MAX('TSS3'!C21:Q21))/J44","v":0},null,"→","Automatic value is refer to Time Study Sheet & SWCT Form, don’t change this value"]
[null,"Min",null,null,{"$f":"(MIN('TSS1'!C22:Q22))/D44","v":0},null,null,{"$f":"(MIN('TSS2'!C21:Q21))/G44","v":0},null,null,{"$f":"(MIN('TSS3'!C21:Q21))/J44","v":0},null,"→","Automatic value is refer to Time Study Sheet & SWCT Form, don’t change this value"]
[null,"Average Baratsuki",null,null,{"$f":"(E47/2)+E45+E48","v":27},null,null,{"$f":"(H47/2)+H45+H48","v":0},null,null,{"$f":"(K47/2)+K45+K48","v":0},null,"→","Automatic value is refer to Time Study Sheet & SWCT Form, don’t change this value"]
[null,"Actual CT",null,0,null,null,0,null,null,0,null,null,"→","Please fill actual CT, you can get from Actual Achievement Report"]
[null,"Takt Time",{"$f":"D54","v":0},0,{"$f":"D54","v":0},{"$f":"E54","v":0},0,{"$f":"G54","v":0},{"$f":"H54","v":0},0,{"$f":"J54","v":0},{"$f":"K54","v":0},"→","Please fill takt time (sec/pc)"]
[null,null,null,"OP1",null,null,"OP2",null,null,"OP3"]

{"sheet":"Yamazumi4","index":16,"n_rows":55,"n_cols":17,"rows_kept":55,"cut":false,"hidden":true,"merged":[]}
[]
[]
[]
[]
[]
[]
[]
[]
[]
[]
[]
[]
[]
[]
[]
[]
[]
[]
[]
[]
[]
[]
[]
[]
[]
[]
[]
[]
[]
[]
[]
[]
[]
[]
[]
[]
[]
[]
[]
[]
[]
[null,"Data For Yamazumi Chart"]
[null,"Please Fill on Yellow Cell Only"]
[null,"Qty / Process (pcs/Cycle)",null,1,null,null,1,null,null,1,null,null,1,null,null,"→","Please fill Qty/process (piece)"]
[null,"CT",null,{"$f":"('1'!E53+'1'!F54+'1'!G53)/D44","v":27},{"$f":"D45","v":27},null,{"$f":"('2'!E53+'2'!F54+'2'!G53)/G44","v":0},{"$f":"G45","v":0},null,{"$f":"('3'!E53+'3'!F54+'3'!G53)/J44","v":0},{"$f":"J45","v":0},null,{"$f":"('4'!E53+'4'!F54+'4'!G53)/M44","v":0},{"$f":"M45","v":0},null,"→","Automatic value is refer to Time Study Sheet & SWCT Form, don’t change this value"]
[null,"Irregular",null,{"$f":"'TSS1'!T38","v":0},null,null,{"$f":"'TSS2'!T37","v":0},null,null,{"$f":"'TSS3'!T37","v":0},null,null,{"$f":"'TSS4'!T37","v":0},null,null,"→","Automatic value is refer to Time Study Sheet & SWCT Form, don’t change this value"]
[null,"Baratsuki",null,null,{"$f":"(E50-E51)/D44","v":0},null,null,{"$f":"(H50-H51)/G44","v":0},null,null,{"$f":"(K50-K51)/J44","v":0},null,null,{"$f":"(N50-N51)/M44","v":0},null,"→","Automatic value is refer to Time Study Sheet & SWCT Form, don’t change this value"]
[null,"Empty",null,null,{"$f":"D46+D49","v":0},null,null,{"$f":"G46+G49","v":0},null,null,{"$f":"J46+J49","v":0},null,null,{"$f":"M46+M49","v":0},null,"→","Automatic value is refer to Time Study Sheet & SWCT Form, don’t change this value"]
[null,"Dandori (sec/pc)",null,0,null,null,0,null,null,0,null,null,0,null,null,"→","Please fill dandori time (type change) for sec/pc"]
[null,"Max",null,null,{"$f":"(MAX('TSS1'!C22:Q22))/D44","v":0},null,null,{"$f":"(MAX('TSS2'!C21:Q21))/G44","v":0},null,null,{"$f":"(MAX('TSS3'!C21:Q21))/J44","v":0},null,null,{"$f":"(MAX('TSS4'!C21:Q21))/J44","v":0},null,"→","Automatic value is refer to Time Study Sheet & SWCT Form, don’t change this value"]
[null,"Min",null,null,{"$f":"(MIN('TSS1'!C22:Q22))/D44","v":0},null,null,{"$f":"(MIN('TSS2'!C21:Q21))/G44","v":0},null,null,{"$f":"(MIN('TSS3'!C21:Q21))/J44","v":0},null,null,{"$f":"(MIN('TSS4'!C21:Q21))/J44","v":0},null,"→","Automatic value is refer to Time Study Sheet & SWCT Form, don’t change this value"]
[null,"Average Baratsuki",null,null,{"$f":"(E47/2)+E45+E48","v":27},null,null,{"$f":"(H47/2)+H45+H48","v":0},null,null,{"$f":"(K47/2)+K45+K48","v":0},null,null,{"$f":"(N47/2)+N45+N48","v":0},null,"→","Automatic value is refer to Time Study Sheet & SWCT Form, don’t change this value"]
[null,"Actual CT",null,0,null,null,0,null,null,0,null,null,0,null,null,"→","Please fill actual CT, you can get from Actual Achievement Report"]
[null,"Takt Time",{"$f":"D54","v":0},0,{"$f":"D54","v":0},{"$f":"E54","v":0},0,{"$f":"G54","v":0},{"$f":"H54","v":0},0,{"$f":"J54","v":0},{"$f":"K54","v":0},0,{"$f":"M54","v":0},{"$f":"N54","v":0},"→","Please fill takt time (sec/pc)"]
[null,null,null,"OP1",null,null,"OP2",null,null,"OP3",null,null,"OP4"]

{"sheet":"Yamazumi5","index":17,"n_rows":55,"n_cols":20,"rows_kept":55,"cut":false,"hidden":true,"merged":[]}
[]
[]
[]
[]
[]
[]
[]
[]
[]
[]
[]
[]
[]
[]
[]
[]
[]
[]
[]
[]
[]
[]
[]
[]
[]
[]
[]
[]
[]
[]
[]
[]
[]
[]
[]
[]
[]
[]
[]
[]
[]
[null,"Data For Yamazumi Chart"]
[null,"Please Fill on Yellow Cell Only"]
[null,"Qty / Process (pcs/Cycle)",null,1,null,null,1,null,null,1,null,null,1,null,null,1,null,null,"→","Please fill Qty/process (piece)"]
[null,"CT",null,{"$f":"('1'!E53+'1'!F54+'1'!G53)/D44","v":27},{"$f":"D45","v":27},null,{"$f":"('2'!E53+'2'!F54+'2'!G53)/G44","v":0},{"$f":"G45","v":0},null,{"$f":"('3'!E53+'3'!F54+'3'!G53)/J44","v":0},{"$f":"J45","v":0},null,{"$f":"('4'!E53+'4'!F54+'4'!G53)/M44","v":0},{"$f":"M45","v":0},null,{"$f":"('5'!E53+'5'!F54+'5'!G53)/P44","v":0},{"$f":"P45","v":0},null,"→","Automatic value is refer to Time Study Sheet & SWCT Form, don’t change this value"]
[null,"Irregular",null,{"$f":"'TSS1'!T38","v":0},null,null,{"$f":"'TSS2'!T37","v":0},null,null,{"$f":"'TSS3'!T37","v":0},null,null,{"$f":"'TSS4'!T37","v":0},null,null,{"$f":"'TSS5'!T37","v":0},null,null,"→","Automatic value is refer to Time Study Sheet & SWCT Form, don’t change this value"]
[null,"Baratsuki",null,null,{"$f":"(E50-E51)/D44","v":0},null,null,{"$f":"(H50-H51)/G44","v":0},null,null,{"$f":"(K50-K51)/J44","v":0},null,null,{"$f":"(N50-N51)/M44","v":0},null,null,{"$f":"(Q50-Q51)/P44","v":0},null,"→","Automatic value is refer to Time Study Sheet & SWCT Form, don’t change this value"]
[null,"Empty",null,null,{"$f":"D46+D49","v":0},null,null,{"$f":"G46+G49","v":0},null,null,{"$f":"J46+J49","v":0},null,null,{"$f":"M46+M49","v":0},null,null,{"$f":"P46+P49","v":0},null,"→","Automatic value is refer to Time Study Sheet & SWCT Form, don’t change this value"]
[null,"Dandori (sec/pc)",null,0,null,null,0,null,null,0,null,null,0,null,null,0,null,null,"→","Please fill dandori time (type change) for sec/pc"]
[null,"Max",null,null,{"$f":"(MAX('TSS1'!C22:Q22))/D44","v":0},null,null,{"$f":"(MAX('TSS2'!C21:Q21))/G44","v":0},null,null,{"$f":"(MAX('TSS3'!C21:Q21))/J44","v":0},null,null,{"$f":"(MAX('TSS4'!C21:Q21))/M44","v":0},null,null,{"$f":"(MAX('TSS5'!C21:Q21))/P44","v":0},null,"→","Automatic value is refer to Time Study Sheet & SWCT Form, don’t change this value"]
[null,"Min",null,null,{"$f":"(MIN('TSS1'!C22:Q22))/D44","v":0},null,null,{"$f":"(MIN('TSS2'!C21:Q21))/G44","v":0},null,null,{"$f":"(MIN('TSS3'!C21:Q21))/J44","v":0},null,null,{"$f":"(MIN('TSS4'!C21:Q21))/M44","v":0},null,null,{"$f":"(MIN('TSS5'!C21:Q21))/P44","v":0},null,"→","Automatic value is refer to Time Study Sheet & SWCT Form, don’t change this value"]
[null,"Average Baratsuki",null,null,{"$f":"(E47/2)+E45+E48","v":27},null,null,{"$f":"(H47/2)+H45+H48","v":0},null,null,{"$f":"(K47/2)+K45+K48","v":0},null,null,{"$f":"(N47/2)+N45+N48","v":0},null,null,{"$f":"(Q47/2)+Q45+Q48","v":0},null,"→","Automatic value is refer to Time Study Sheet & SWCT Form, don’t change this value"]
[null,"Actual CT",null,0,null,null,0,null,null,0,null,null,0,null,null,0,null,null,"→","Please fill actual CT, you can get from Actual Achievement Report"]
[null,"Takt Time",{"$f":"D54","v":0},0,{"$f":"D54","v":0},{"$f":"E54","v":0},0,{"$f":"G54","v":0},{"$f":"H54","v":0},0,{"$f":"J54","v":0},0,0,0,0,0,0,0,"→","Please fill takt time (sec/pc)"]
[null,null,null,"OP1",null,null,"OP2",null,null,"OP3",null,null,"OP4",null,null,"OP5"]

{"sheet":"Help","index":18,"n_rows":34,"n_cols":12,"rows_kept":34,"cut":false,"hidden":true,"merged":[]}
["Welcome","Dear user,\n      \n       Welcome to use \"Standardized Work Analyze Tool\" . This is an Application with Ms.Excel based program using MS-VBA (macro).\nThis program useful for create Standardized Work Combination Table & Yamazumi Chart and analyze it so You can decide Your Improvement.\n\nWith Stopwatch feature, you can observe cycle time time with stopwatch built in  directly and then create Standardized Work Combination Table and Yamazumi Chart  Automatically\nNo need stopwatch and paper form again, just take your notebook to production line and directly create Standardized Work Combination Table.\nData result create quickly, so you can do kaizen (improvement) faster.\n\nWe hope this Program will help you to do your improvement on Your Production Line Faster, \nfor improve this Program please send your suggestion at yaseralie@gmail.com\n\nNever Give Up!\n\nSincerely\nYaser Ali Husen\n",null,null,null,null,null,"Walk","walk","walking","return","Return"]
["Start Program","For starting program\nClick Start button in Sheet Menu then Menu Toolbar and Navigation form will appear in top and right your screen",null,null,null,null,null,"\nWelcome,\nThank You for using This Program. This Program is useful for creating\nStandardized Work Combination Table,\nProduction Capacity Sheet,\nYamazumi Chart.\nAnd Analyze it for your Improvement.\nWe hope this Program will help you to do your production improvement Faster.\n\n"]
["Navigation Form","With Navigation Form, You can select any Sheet of Time Study Sheet and Standardized Work Combination Table Sheet.\n- \"Define Walk\" to setup words that mean \"Walking activity\" in order Program can recognize \"Walk\" When Insert data from Time Study Sheet Form\n- Add row in Standardized Work Combination Table Form form by click \"Insert Row\" \n- Delete row in Standardized Work Combination Table Form form by click \"Delete Row\"\n\nClick \"Print\" button to print a page",null,null,null,null,null,"\nThank You for Purchase this Program.\nNow This Program is Full version and valid forever.\nPlease save and make backup on this computer.\n\nPlease do not copy or move this Program to another computer.\nThis Program is registered only for 1 computer, and could not be copied for another user.\n\nSincerely,\nYaser Ali Husen"]
["Menu Toolbar","Menu Toolbar is main tool in this program\nIn this toolbar, There is many tool you can use it such as acces Stopwatch, Create Standardized Work Combination Table and acces Yamazumi Chart\n\nCapacity this Program is for 5 Operators, Please Click \"+/-\" to add/remove form"]
["Stopwatch","Stopwatch feature is a tool for observe cycle time directly on Your Production Line\nBefore you use stopwatch, please select a Time Study Sheet and determine each Workname\n\nResult will input in to Time Study Sheet Form Automatically\nThere is 2 type o Stopwatch (For Manual Work and For Machine Time & Irregular Work)\n\nUse Keyboard Control to control Stopwatch use Your Keyboard such as Space for Lap, S key for Start/Stop."]
["Video Capture","Video capture\nVideo Capture function is a tool to observe the cycle time of the video\nBefore you use video capture please select a Time Study Sheet and determine each Workname"]
["TSS Form","Time Study Sheet Form is a Form  to save your observation data\nYou can insert row manually if row is not enough for your Workname\n\nFill TSS Form First before you use Stopwatch function\n\nAfter calculate value for Your result data, do adjustment if neccesary"]
["SWCT Form","SWCT Form is form to draw SWCT Chart\nYou can fill work name and its value manually or automatically using \"Insert Data\" button\n\nIf row is not enough for Your Work name, please insert row or delete row use button in Navigation Form (not allow to add or remove row manually)\nYou can change the Header Format according Your Company Format, Header Area is Range(\"A2:IL4\")"]
["Create SWCT","To create Standardized Work Combination Table :\n- After you Observe time and input in to Time Study Sheet, Click \"Insert\" button, Program will insert data from TSS Form in to SWCT Form.\nWalk activity will recognize as Walk time\n- Click \"Draw SWCT\" button, Program will draw SWCT Chart accordance with your data, and determine waiting if there is waiting\n'- Click \"Takt Time\" button to determine takt time\n\n*You can fill work name and its value manually (without insert from Time Study Sheet)"]
["Production Capacity Form","Production Capacity is useful to calculate capacity each machine based on Machine Cycle Time (MCT).\nMCT is Hand Work (manual unload-load) + Machine Time (Auto)\n\nClick \"Prod. Cap Sheet\" button in Toolbar to starting calculate Production Capacity Sheet (PCS)\nData for PCS is obtained from Time Study Sheet Form All Operator\n\n*You can change Header format according Your Company Format"]
["Yamazumi Form","Yamazumi Chart is useful for analyze Job Balancing between operators\nData yamazumi is obtained from TSS Form & SWCT Form\n\nFor Takt time, Dandori (Type Change) and Actual Cycle Time, please input manually"]
["Save Result","After Finish, You can save as the result and file become Non macro Excel File"]
["Activate Program","For first time, this program is a trial version for 30 days. To get a Full Version please click \"Activate\" button.\nFill activation form and Input Activation Code.\n\nThis Program is registered only for 1 computer, and could not be copied for another user.\nIf You move or copy to another computer the license will not be valid anymore"]
[]
[]
[]
[]
[]
[]
[]
[]
[]
[]
[]
[]
[]
["Username","Guest (Unregistered User)"]
["kode 1"]
["kode2",7069557]
["komputer","YASER-PC"]
["officecode","{90120000-0030-0000-0000-0000000FF1CE}"]
["tanggal",42496.685554861113]
["Status","Trial 30 days"]
["jumlah form",1]